Workbook

Sheet Intro
A1: 0 | C1: Alternative Evaluation | R1: Do you need free browsing the program file? | T1: Exchange Rates
D2: EXPECTED FINAL RESULT OF PRE DESIGN | P2: Click down | T2: 1 | U2: 1.96 | V2: =V3/T3 -> 1.219512195
C3: SALES, Loan Life | D3: =SUM(D4:D7) -> 19496400 | E3: =SUM(E4:E7) -> 38212944 | T3: 0.82 | V3: 1
C4: Tomatoes (T ) | D4: =ROUND(Q22,-2) -> 14387800 | E4: =D4*$U$2 -> 28200088 | F4: BROWSING | H4: Represented by local outsourcing east electric company Ltd., Bulgaria
C5: Cucumbers (C ) | D5: =ROUND(Q24,-2) -> 5108600 | E5: =D5*$U$2 -> 10012856 | F5: OPERATIONS | H5: TomCuc Greenhouse
C6: By/3th products | D6: =H26+J26+L26+N26+P26+T26 -> 0 | E6: =D6*$U$2 -> 0 | P6: =TODAY() -> 2019-01-01
A7: Click the picture  to increase it | C7: Market Products | D7: =Q28 -> 0 | E7: =D7*$U$2 -> 0 | G7: ←Level 5 → | I7: Zoom↓ | J7: Risk assessment and management Go to Bayes Theorem
C8: COSTS, Total | D8: =SUM(D9:D10) -> 6891015.569 | E8: =SUM(E9:E10) -> 13506390.52 | G8: ←Level 4 → | J8: Sensitivity analysis | M8: ←Zoom 100 PC screen resolution: 1920 x 1080
C9: Variable costs | D9: =BUDGET!C23 -> 4241086.892 | E9: =D9*$U$2 -> 8312530.309 | G9: ←Level 3 | J9: Resolution 1680 x 1050. For lower PC screen resolution try this →
A10: T | B10: C | C10: Fixed costs | D10: =BUDGET!C24 -> 2649928.677 | E10: =D10*$U$2 -> 5193860.207 | G10: ←Level 2 | I10: Zoom 143 | J10: Cash-flow Pro-forma Budgeting | N10: 1920 x 1080
A11: By-products | C11: Revenues /Costs | D11: =ROUND(D3-D8,-3) -> 12605000 | E11: =ROUND(E3-E8,-3) -> 24707000 | G11: ←Level 1 | I11: → | J11: Capital Goods and Services | N11: Select Zoom 100 if Resolution of your display is lesser than 1600 x 900.
C12: Marketing / RM | D12: =BUDGET!C25 -> 138385.3512 | E12: =D12*$U$2 -> 271235.2883 | G12: ←Level 0 | I12: Basic data, invariant for this Project
C13: From market Bad, is selected over underground water resource Increase / Decrease | E13: =E5*(1-E15) -> 11574494.09
A14: Efficiency of selling own products | E14: =E13*(1+E16) -> 15553226.44 | H14: Level Go dowm
A15: Increased sale of final products | C15: 109 | D15: 92 | E15: =(D15-C15)/C15 -> -0.1559633028 | L15: Quality Evaluation | N15: =U38/M16 -> 678.9285 | O15: t p.a./ 1 ha | P15: relative yield | Q15: Demand increases
A16: Increased the sale price, € | C16: 3.2 | D16: 4.3 | E16: =(D16-C16)/C16 -> 0.34375 | F16: Click the image to reveal the final results | L16: Area | M16: =5898000/1000000 -> 5.898 | N16: =M16*N17 -> 4140.396 | O16: t p.a. Project
E17: =E13/E14 -> 0.7441860465 | K17: T≈ | L17: 0.7 | M17: =M16*L17 -> 4.1286 | N17: =U36/M17 -> 702 | O17: t p.a./ 1 ha | P17: Max size:
A18: Overall probability of Bad event - lost profits due to the wholesalers distribution. | K18: C≈ | L18: =100%-L17 -> 0.3 | M18: =M16*L18 -> 1.7694 | N18: =U37/M18 -> 625.095 | O18: t p.a./ 1 ha | P18: 13.2384 | T18: =13.81*2 -> 27.62
E19: Revenue increase due to better distribution, TOTAL: | F19: 7-Yr Option | G19: FINAL PRODUCTS FOR SALE | K19: Other≈ | L19: =100%-L17-L18 -> 0 | M19: =M16*L19 -> 0 | T19: =14.33*2 -> 28.66
B20: The greenhouse complex | E20: Loans A + B - D Investment, TOTAL: | F20: Sales Nr of Yrs: | J20: =BUDGET!G41 -> 1 | K20: 2, 3, | N20: =BUDGET!M41 -> 4 | P20: =BUDGET!O41 -> 5 | T20: =SUM(T18:T19) -> 56.28
A21: Creditor ECA  | B21: Project Finance | E21: =Bayes!P21/100 -> 0.021 | F21: Products | G21: t p.a. | H21: Total, € | I21: t p.a. | J21: Total, € | M21: t p.a. | N21: Total, € | O21: t p.a. | P21: Total, € | Q21: Check
A22: Export Credit Insurance | C22: Financial Modeling | E22: =E14*(1-E21) -> 15226608.68 | F22: Tomatoes T | G22: =U36 -> 2898.2772 | H22: =U39 -> 2877551.675 | I22: =U36 -> 2898.2772 | J22: =U39 -> 2877551.675 | K22: . . . . . . | M22: =U36 -> 2898.2772 | N22: =U39 -> 2877551.675 | O22: =U36 -> 2898.2772 | P22: =U39 -> 2877551.675 | Q22: =P22*P20 -> 14387758.38
A23: Marketing | C23: Business Plan East Electric Company | F23: Outcome:
C24: Risk Assessment Equivalence Ltd. | F24: Cucumbers C | G24: =U37 -> 1106.043093 | H24: =U40 -> 1021725.619 | I24: =U37 -> 1106.043093 | J24: =U40 -> 1021725.619 | K24: . . . . . . | M24: =U37 -> 1106.043093 | N24: =U40 -> 1021725.619 | O24: =U37 -> 1106.043093 | P24: =U40 -> 1021725.619 | Q24: =P24*P20 -> 5108628.093
D25: Greenhouse platform construction | F25: Outcome:
D26: & infrastructure, power connection | F26: By-products | K26: . . . . . . | Q26: =P26*P20 -> 0
D27:  Construction company | F27: 2ndstage of project
A28: Products: | D28: Intellectual products: | F28: Others, fromarket | H28: =BUDGET!G49+BUDGET!H49 -> 0.5 | J28: =BUDGET!I49+BUDGET!J49 -> 800 | K28: . . . . . . | N28: =BUDGET!N49+BUDGET!O49 -> 0 | P28: =BUDGET!P49+BUDGET!Q49 -> 0 | Q28: =O28*P20 -> 0
A29: Cucumbers ← | C29: ← Risk assessment & management | F29: Outcome:
A30: Tomatoes ← | D30: ← Online cash-flow control system | F30: Budget, TOTAL | G30: =H22+H24+H26+H28 -> 3899277.794 | I30: =J22+J24+J26+J28 -> 3900077.294 | K30: . . . . . . | M30: =N22+N24+N26+N28 -> 3899277.294 | O30: =P22+P24+P26+O28 -> 3899277.294 | Q30: =Q22+Q24+Q26+Q28 -> 19496386.47
A31: By-products of tomatoes & cucumbers ← | D31: ← History of sales and costs | F31: Outcome, TOTAL | G31: =H23+H25+H27+H29 -> 0 | I31: =J23+J25+J27+J29 -> 0 | K31: =L23+L25+L27+L29 -> 0 | M31: =N23+N25+N27+N29 -> 0 | O31: =P23+P25+P27+P29 -> 0
A32: The applied color and image visualizations in all worksheets are designed for faster and easier perception of the figures and formulas, as well as for their long term remembering for project financing success. | U32: ¯ Basic unchangeable values for transfer to upper level Ö | V32: Average
H33: Sales Mo: | I33: 1 | J33: =I33+1 -> 2 | K33: =J33+1 -> 3 | L33: 4 | M33: 5 | N33: 6 | O33: 7 | P33: 8 | Q33: 9 | R33: 10 | S33: 11 | T33: 12 | U33: Total/Average
H34: SingleT Price,€/kg | I34: =C50 -> 1.6443 | J34: =C51 -> 2.6892 | K34: =C52 -> 2.0898 | L34: =C53 -> 1.5066 | M34: =C54 -> 1.1421 | N34: =C55 -> 0.7128 | O34: =C56 -> 0.5988735 | P34: =C57 -> 0.5427 | Q34: =C58 -> 0.7128 | R34: =C59 -> 1.4256 | S34: =C60 -> 1.0935 | T34: =C61 -> 1.4256 | U34: =SUM(I34:T34)/12 -> 1.298656125 | V34: /kg
H35: SingleC Price, €/kg | I35: =F50 -> 1.344 | J35: =F51 -> 1.1928 | K35: =F52 -> 1.3524 | L35: =F53 -> 1.4532 | M35: =F54 -> 1.0248 | N35: =F55 -> 0.6636 | O35: =F56 -> 0.5124 | P35: =F57 -> 0.6468 | Q35: =F58 -> 1.2432 | R35: =F59 -> 0.84 | S35: =F60 -> 1.848 | T35: =F61 -> 0.7476 | U35: =SUM(I35:T35)/12 -> 1.0724 | V35: /kg
H36: This caseT yield,kg | I36: =A50*$M$17*10000 -> 0 | J36: =A51*$M$17*10000 -> 0 | K36: =A52*10000*$M$17 -> 181658.4 | L36: =A53*$M$17*10000 -> 355059.6 | M36: =A54*$M$17*10000 -> 400474.2 | N36: =A55*$M$17*10000 -> 425245.8 | O36: =A56*$M$17*10000 -> 450017.4 | P36: =A57*$M$17*10000 -> 404602.8 | Q36: =A58*$M$17*10000 -> 309645 | R36: =A59*$M$17*10000 -> 194044.2 | S36: =A60*$M$17*10000 -> 111472.2 | T36: =A61*$M$17*10000 -> 66057.6 | U36: =SUM(I36:T36)/1000 -> 2898.2772 | V36: /ha
H37: This case C yield,kg | I37: =D50*M18*10000 -> 0 | J37: =D51*$M$18*10000 -> 61829.9136 | K37: =D52*10000*$M$18 -> 111327.1092 | L37: =D53*$M$18*10000 -> 131025.8394 | M37: =D54*$M$18*10000 -> 42646.0788 | N37: =D55*$M$18*10000 -> 189423.117 | O37: =D56*$M$18*10000 -> 201531.1212 | P37: =D57*$M$18*10000 -> 177465.5118 | Q37: =D58*$M$18*10000 -> 21420.3564 | R37: =D59*$M$18*10000 -> 88866.3456 | S37: =D60*$M$18*10000 -> 52790.049 | T37: =D61*$M$18*10000 -> 27717.651 | U37: =SUM(I37:T37)/1000 -> 1106.043093 | V37: /ha
H38: This TOTAL YIELD | I38: =I36+I37 -> 0 | J38: 61829.9136 | K38: =K36+K37 -> 292985.5092 | L38: =L36+L37 -> 486085.4394 | M38: 443120.2788 | N38: =N36+N37 -> 614668.917 | O38: 651548.5212 | P38: 582068.3118 | Q38: 331065.3564 | R38: 282910.5456 | S38: 164262.249 | T38: 93775.251 | U38: =SUM(U36:U37) -> 4004.320293 | V38: =IF(SUM(I38:T38)/1000=U38,TRUE,FALSE) -> TRUE
H39: This caseTsales, € | I39: =I36*I34 -> 0 | J39: 0 | K39: =K36*K34 -> 379629.7243 | L39: 534932.7934 | M39: 457381.5838 | N39: 303115.2062 | O39: =O36*O34 -> 269503.4954 | P39: 219577.9396 | Q39: 220714.956 | R39: 276629.4115 | S39: 121894.8507 | T39: 94171.71456 | U39: =SUM(I39:T39) -> 2877551.675 | V39: /ann
H40: This caseC sales, € | I40: =I37*I35 -> 0 | J40: =J37*J35 -> 73750.72094 | K40: =K37*K35 -> 150558.7825 | L40: =L37*L35 -> 190406.7498 | M40: =M37*M35 -> 43703.70155 | N40: =N37*N35 -> 125701.1804 | O40: 103264.5465 | P40: 114784.693 | Q40: 26629.78708 | R40: 74647.7303 | S40: 97556.01055 | T40: 20721.71589 | U40: =SUM(I40:T40) -> 1021725.619 | V40: /ann
H41: Costs ↓ | T41: Sales: | U41: =SUM(U39:U40) -> 3899277.294 | V41: /ann
H42: Pell+Trans.Heating | I42: =N66 -> 40552.19425 | J42: =N67 -> 36865.68879 | K42: =N68 -> 31324.30325 | L42: =N69 -> 23962.70828 | M42: =N70 -> 10994.47366 | N42: =N71 -> 0 | O42: =N72 -> 0 | P42: =N73 -> 0 | Q42: =N74 -> 0 | R42: =N75 -> 18432.80916 | S42: =N76 -> 27649.21374 | T42: =N77 -> 31335.78967 | U42: =SUM(I42:T42) -> 221117.1808 | V42: /ann
C43: For Developer's use only | H43: This Packaging | I43: =I36*$G$68+I37*$G$71 -> 0 | J43: 2782.346112 | K43: 16817.51591 | L43: 28975.03677 | M43: 27949.89655 | N43: 36165.01727 | O43: 38320.03145 | P43: 34285.13003 | Q43: 21090.84104 | R43: 16611.85855 | S43: 9621.245205 | T43: 5541.038295 | U43: =SUM(I43:T43) -> 238159.9572 | V43: /ann
H44: This Running cost | U44: =SUM(I44:T44) -> 0 | V44: /ann
A45: Tom. | B45: I N F L O W D A T A W O R K I N G P A N E L | H45: Others fromarket | V45: /ann
C46: DATA ENTRY PANEL FOR THE BASE Level 0 | T46: I N C R E A S E : | U46: Æ VAT | V46: Æ Own Funds | W46: Prc OwnFunds
A47: ↑ Increase | B47: C %+4% | C47: Potential YIELD and | D47: SALES | H47: COSTS of fertilizer, seeding and substrate | K47: Water p.a. | L47: Consumption | M47: Electricity | N47: This | O47: Project | P47: Budgeted values + VAT revivable | S47: =S48+S56 -> 8542843.943 | T47: =M16 -> 5.898 | U47: =U48+U56 -> 8344843.943 | V47: =V48+V56 ->  | W47: =V47*T57 -> 
A48: price option | B48: Price | C48: =-IF(D49=0,0,(D49+3)/100) -> -0.19 | D48: Yield C kg/m2 | E48: Price ↑ | F48: =-D49/100 -> -0.16 | G48: These data are based on the EU FSS | H48: 13.4 | I48: ←Total area as base | K48: 5 | L48: liter p.m2 | M48: 6 | N48: Water + | O48: Electricity | P48: Local Costs | Q48: ↓ | R48: 1 | S48: =SUM(S50:S55)+S64 -> 871967.9434 | T48: VAT | U48: =SUM(U49:U55) -> 1173967.943 | V48: =SUM(V49:V55) -> 1173967.943 | W48: =SUM(W49:W55) -> 1165082
A49: Yield T kg/m2 | B49: ↑ € /kg | C49: € /kg | D49: 16 | E49: € /kg | H49: This project ↓ | I49: €/ Yr/ ha | K49: 0.3 | L49: € p. liter | M49: 0.06 | O49: ↓ | P49: Permits & Construction, F26 | S49: 50000 | T49: 0 | U49: =S50*(1+$T$49) -> 302000 | V49: =U49*(1+T$60) -> 302000 | W49: =V49*(1-$T$57) -> 302000
A50: 0 | B50: 2.03 | C50: =B50*(1+$C$48) -> 1.6443 | D50: 0 | E50: 1.6 | F50: =E50*(1+$F$48) -> 1.344 | H50: ↓ Fertilizers ↓ . | K50: 0.218 | L50: =$K$48*$K$49*$T$47*K50*10000 -> 19286.46 | M50: =K50*$M$48*$M$49*$T$47*10000 -> 4628.7504 | P50: Terrain, infrastructure, F27 | R50: 0.045 | S50: =ROUNDUP(R50*S57,-3) -> 302000 | T50: TOTAL | U50: =S50*(1+$T$49) -> 302000 | V50: =U50*(1+T$60) -> 302000 | W50: =V50*(1-$T$57) -> 302000
A51: 0 | B51: 3.32 | C51: =B51*(1+$C$48) -> 2.6892 | D51: =34944/10000 -> 3.4944 | E51: 1.42 | F51: =E51*(1+$F$48) -> 1.1928 | H51: =I83 -> 113440 | I51: -0.05 | J51: =I52/$H$48 -> 8042.38806 | K51: 0.175 | L51: =$K$48*$K$49*$T$47*K51*10000 -> 15482.25 | M51: =$M$48*$M$49*$T$47*10000*K51 -> 3715.74 | P51: Others unforeseen exp. F29 | R51: 9000 | S51: =R51*$T$47 -> 53082 | T51: =U47-S47 -> -198000 | U51: =S51*(1+$T$49) -> 53082 | V51: =U51*(1+T$60) -> 53082 | W51: =V51*(1-$T$57) -> 53082
A52: 4.4 | B52: 2.58 | C52: =B52*(1+$C$48) -> 2.0898 | D52: =62918/10000 -> 6.2918 | E52: 1.61 | F52: =E52*(1+$F$48) -> 1.3524 | H52: =$J$51*M17 -> 33203.80334 | I52: =H51*(1+I51) -> 107768 | K52: 0.141 | L52: =$K$48*$K$49*$T$47*K52*10000 -> 12474.27 | M52: 2993.8248 | P52: Truck transport, F31 | R52: =IF($T$47>10,A93,IF($T$47<=5,25000,35000)) -> 35000 | S52: 0 | T52: Local cost | U52: =S52*(1+$T$49) -> 0 | V52: 0 | W52: =V52*(1-$T$57) -> 0
A53: 8.6 | B53: 1.86 | C53: =B53*(1+$C$48) -> 1.5066 | D53: =74051/10000 -> 7.4051 | E53: 1.73 | F53: =E53*(1+$F$48) -> 1.4532 | H53: =J51*M18 -> 14230.20143 | K53: 0.064 | L53: =$K$48*$K$49*$T$47*10000*K53 -> 5662.08 | M53: 1358.8992 | P53: BizPlan, Fin. modeling, F33 | R53: =IF($T$47>10,300000,IF($T$47<=5,80000,240000)) -> 240000 | S53: =R53 -> 240000 | T53: Exp-Imp | U53: =S53*(1+$T$49) -> 240000 | V53: 240000 | W53: =V63*(1-$T$57) -> 240000
A54: 9.7 | B54: 1.41 | C54: =B54*(1+$C$48) -> 1.1421 | D54: =24102/10000 -> 2.4102 | E54: 1.22 | F54: 1.0248 | H54: ↓ Seeding ↓ . | K54: 0.01 | L54: 884.7 | M54: 212.328 | N54: 6 Mo | O54: SubTOTAL | P54: Risk Assessment, F34 | R54: =IF($T$47>10,60000,IF($T$47<=5,20000,28000)) -> 28000 | S54: =R54 -> 28000 | T54: 59572.8 | U54: 28000 | V54: 28000 | W54: =V53*(1-$T$57) -> 240000
A55: 10.3 | B55: 0.88 | C55: 0.7128 | D55: =107055/10000 -> 10.7055 | E55: 0.79 | F55: 0.6636 | H55: =I84 -> 275200 | I55: =H55*(1+I51) -> 261440 | J55: =I55/$H$48 -> 19510.44776 | K55: 0.01 | L55: =$K$48*$K$49*$T$47*10000*K55 -> 884.7 | M55: 212.328 | N55: 1 → | O55: =SUM(L50:L55)+SUM(M50:M55) -> 67796.3304 | P55: Plants' mater's, seeding, F30 | R55: =J51+J55+J58 -> 42640.8209 | S55: =R55*C83 -> 248885.9434 | U55: =S55*(1+$T$49) -> 248885.9434 | V55: 248885.9434 | W55: =V54*(1-$T$57) -> 28000
A56: 10.9 | B56: 0.73935 | C56: 0.5988735 | D56: =113898/10000 -> 11.3898 | E56: 0.61 | F56: 0.5124 | H56: =J55*$T$47 -> 115072.6209 | K56: 0 | L56: 0 | M56: 0 | P56: Greenhouse Import ↓ | S56: =SUM(S57:S63) -> 7670876 | T56: OwnFunds | U56: =SUM(U57:U63) -> 7170876 | V56: =SUM(V57:V63) ->  | W56: =SUM(W58:W62) -> 
A57: 9.8 | B57: 0.67 | C57: 0.5427 | D57: =100297/10000 -> 10.0297 | E57: 0.77 | F57: 0.6468 | H57: Biennially ↓ Substrate ↓ Biennially | K57: 0 | L57: 0 | M57: 0 | P57: Greenhouse compl. set, F8 | R57: =ROUNDUP(A95,-3) -> 1096000 | S57: =A89+S63 -> 6702076 | T57: 0 | U57: =S57*(1+$T$49) -> 6702076 | V57: =U57*(1+T$60) -> 6702076 | W57: =V56*(1-$T$57) -> 
A58: 7.5 | B58: 0.88 | C58: =B58*(1+$C$48) -> 0.7128 | D58: =12106/10000 -> 1.2106 | E58: 1.48 | F58: 1.2432 | H58: =I85 -> 212820 | I58: =H58*(1+I51) -> 202179 | J58: =I58/$H$48 -> 15087.98507 | K58: 0.009 | L58: 796.23 | M58: 191.0952 | P58: Construction+installation, F9 | S58: 500000 | T58: + | V58: =U59*(1+T$60) -> 180000 | W58: =V57*(1-$T$57) -> 6702076
A59: 4.7 | B59: 1.76 | C59: =B59*(1+$C$48) -> 1.4256 | D59: =50224/10000 -> 5.0224 | E59: 1 | F59: 0.84 | H59: =J58*$T$47/2 -> 44494.46799 | K59: 0.062 | L59: 5485.14 | M59: 1316.4336 | P59: Truck transport, F | R59: =A93/T47 -> 30518.81994 | S59: 180000 | T59: =T60-T57 -> 0 | U59: =S59*(1+$T$49) -> 180000 | V59: =U60*(1+T$60) -> 42000
A60: 2.7 | B60: 1.35 | C60: 1.0935 | D60: =29835/10000 -> 2.9835 | E60: 2.2 | F60: 1.848 | H60: q Biennially s | I60: s Biennially q | K60: 0.12 | L60: =$K$48*$K$49*$T$47*10000*K60 -> 10616.4 | M60: 2547.936 | N60: 6 Mo | O60: SubTOTAL | P60: 1 Yr Supervision, F10 | Q60: F10→ 2 | R60: 1 | S60: =A92*R60 -> 42000 | T60: =((100/(100-T57*100)*100-100)/100) -> 0 | U60: =S60*(1+$T$49) -> 42000 | V60: =#REF!*(1+T$60) ->  | W60: =V58*(1-$T$57) -> 180000
A61: 1.6 | B61: 1.76 | C61: 1.4256 | D61: =15665/10000 -> 1.5665 | E61: 0.89 | F61: 0.7476 | H61: TOTAL | I61: TOTAL | K61: 0.191 | L61: 16897.77 | M61: 4055.4648 | N61: 2 → | O61: =SUM(L56:L61)+SUM(M56:M61) -> 41906.4696 | P61: Management.&Training, F10 | R61:  | S61: =A91 -> 6800 | T61: Σ over↓ | U61: =S61*(1+$T$49) -> 6800 | V61: =U61*(1+T$60) -> 6800 | W61: =V60*(1-$T$57) -> 
A62: =SUM(A50:A61) -> 70.2 | B62: =SUM(B50:B61)/12 -> 1.603279167 | C62: =SUM(C50:C61)/12 -> 1.298656125 | D62: =SUM(D50:D61) -> 62.5095 | E62: =SUM(E50:E61)/12 -> 1.276666667 | F62: =SUM(F50:F61)/12 -> 1.0724 | H62: =H52+H53+H56+H59 -> 207001.0937 | I62: =H52+H53+H56 -> 162506.6257 | K62: =SUM(K50:K61) -> 1 | L62: =SUM(L50:L61) -> 88470 | M62: =SUM(M50:M61) -> 21232.8 | O62: ←Change↓ | W62: =V61*(1-$T$57) -> 6800
A63: TOTAL | B63: Average | C63: =B63 -> Average | D63: TOTAL | E63: Average | F63: =E63 -> Average | J63: Pellets → | K63: Conventional | L63: HEATING | M63: Consumption | N63: 0 | O63: Location↑ | P63: Risk Assessment software | S63: 240000 | U63: =S63*(1+$T$49) -> 240000 | V63: =U63*(1+T$60) -> 240000 | W63: =V59*(1-$T$57) -> 42000
B64: min. Price exWarehouse, LondonÒ | C64: 1.2 | E64: m | H64: 155 | I64: Tansport → | J64: 20 | K64: 350 | L64: =K64/J64/1000 -> 0.0175 | M64: .+ Transport | N64: This project | P64: Exclusive, F29 | Q64: =IF(N63>0,5.7,0) -> 0 | R64: 0 | S64: =Q64*R64 -> 0
B65: Ý Resource: Nov. 2016 | C65: 1.35 | D65: Other product | E65: Price in € | F65: PACKING | H65: Pellets → | I65: kg p.Mo↓ | J65: kg p.1ha | K65: =H64/1000 -> 0.155 | L65: Transp. p.ha | M65: €/Mo/ha | N65: € p.↓Mo
A66: Spain yiels T + C: | B66: Average price ↓ in Holland | D66: Yield ↓ kg/m2 | E66: € /kg | G66: T | I66: 575463 | J66: =I66/13.2 -> 43595.68182 | K66: =J66*$K$65*(1+$N$63) -> 6757.330682 | L66: =K66*$L$64 -> 118.2532869 | M66: =K66+L66 -> 6875.583969 | N66: =M66*$T$47 -> 40552.19425
A67: Kg | B67: Kg/m2 | C67: € /kg | F67: 10 | G67: 0.65 | I67: 523149 | J67: =I67/13.2 -> 39632.5 | K67: =J67*$K$65*(1+$N$63) -> 6143.0375 | L67: =K67*$L$64 -> 107.5031563 | M67: =K67+L67 -> 6250.540656 | N67: =M67*$T$47 -> 36865.68879
A68: 264768 | B68: =A68/$C$82 -> 4.536184211 | C68: 1.21 | F68: 1 | G68: =G67/F67 -> 0.065 | I68: 444513 | J68: =I68/13.2 -> 33675.22727 | K68: =J68*$K$65*(1+$N$63) -> 5219.660227 | L68: =K68*$L$64 -> 91.34405398 | M68: =K68+L68 -> 5311.004281 | N68: =M68*$T$47 -> 31324.30325
A69: 728112 | B69: 12.47450658 | C69: 2.83 | D69: Here ↗ | E69: Image of new product | G69: C | I69: 340047 | J69: 25761.13636 | K69: =J69*$K$65 -> 3992.976136 | L69: 69.87708239 | M69: =K69+L69 -> 4062.853219 | N69: =M69*$T$47 -> 23962.70828
A70: 1125264 | B70: 19.27878289 | C70: 1.85 | F70: 10 | G70: 0.45 | I70: 156019 | J70: 11819.62121 | K70: =J70*$K$65*(1+$N$63/1.5) -> 1832.041288 | L70: 32.06072254 | M70: =K70+L70 -> 1864.10201 | N70: 10994.47366 | V70: iGo to Level
A71: 1191456 | B71: 20.41282895 | C71: 1.33 | F71: 1 | G71: =G70/F70 -> 0.045 | I71: 0 | J71: 0 | K71: =J71*$K$65*(1+$N$63) -> 0 | L71: 0 | M71: =K71+L71 -> 0 | N71: 0
A72: 1059072 | B72: 18.14473684 | C72: 1.01 | I72: 0 | J72: 0 | K72: =J72*$K$65*(1+$N$63) -> 0 | L72: 0 | M72: 0 | N72: 0
A73: 0 | B73: 0 | C73: 0.63 | I73: 0 | J73: 0 | K73: =J73*$K$65*(1+$N$63) -> 0 | L73: 0 | M73: 0 | N73: 0
A74: 369152 | B74: 6.324561404 | C74: 0.53 | I74: 0 | J74: 0 | K74: =J74*$K$65*(1+$N$63) -> 0 | L74: 0 | M74: 0 | N74: 0
A75: 595728 | B75: 10.20641447 | C75: 0.51 | I75: 261574 | J75: 19816.21212 | K75: =J75*$K$65*(1+$N$63/3) -> 3071.512879 | L75: 53.75147538 | M75: 3125.264354 | N75: 18432.80916
A76: 728112 | B76: 12.47450658 | C76: 0.63 | I76: 392361 | J76: 29724.31818 | K76: =J76*$K$65*(1+$N$63) -> 4607.269318 | L76: 80.62721307 | M76: =K76+L76 -> 4687.896531 | N76: 27649.21374
A77: 369152 | B77: 6.324561404 | C77: 1.01 | I77: 444676 | J77: 33687.57576 | K77: =J77*$K$65*(1+$N$63) -> 5221.574242 | L77: 91.37754924 | M77: 5312.951792 | N77: 31335.78967
A78: 132384 | B78: 2.268092105 | C78: 0.95 | I78: =SUM(I66:I77)/10000 -> 313.7802 | J78: =SUM(J66:J77) -> 237712.2727 | K78: =SUM(K66:K77) -> 36845.40227 | L78: 644.7945398 | M78: 37490.19681 | N78: =SUM(N66:N77) -> 221117.1808
A79: 264768 | B79: 4.536184211 | C79: 1.26 | N79: ha
A80: =SUM(A68:A79) -> 6827968 | B80: =SUM(B68:B79) -> 116.9813596 | C80: ↙ OFFERS ↘ | D80: =SUM(D68:D79) -> 0 | E80: =SUM(E68:E79)/12 -> 0
A81: ① Spain | B81: Polycarbonate | C81: Production + Nursery | D81: ② | E81: Canada ③ | F81: Netherland–Poland | I81: VEGETABLE MATERIALS for | J81: =H48 -> 13.4
A82: =13810*2 -> 27620 | B82: Product zones 1+3 | C82: 58368 | D82: Sector 1 | E82: =158.15*351 -> 55510.65 | H82: Year | I82: 1 | J82: =I82+1 -> 2 | K82: =J82+1 -> 3 | L82: 4 | M82: 5 | N82: 6 | O82: 7 | P82: 8
A83: =14330*2 -> 28660 | B83: Product zones 2+4 | C83: =C82/10000 -> 5.8368 | D83: Sector 2 | E83: =158.15*351 -> 55510.65 | H83: Fertilizers: | I83: 113440 | J83: 113440 | K83: 113440 | L83: 113440 | M83: 113440 | N83: 113440 | O83: 113440 | P83: 113440
A84: 2700 | B84: Cenrtral warehouse | H84: Seeding: | I84: 275200 | J84: 275200 | K84: 275200 | L84: 275200 | M84: 275200 | N84: 275200 | O84: 275200 | P84: 275200
A85: =SUM(A82:A84) -> 58980 | B85: Ç TOTAL surface greenhouse+nursery | D85: Service area | E85: =ROUND(28.8*42.25,-1) -> 1220 | H85: Substrate: | I85: 212820 | J85: 0 | K85: 212820 | L85: 0 | M85: 212820 | N85: 0 | O85: 212820 | P85: 0
A86: 2246 | B86: Nursery ↑ included | D86: Central coridor | E86: =ROUND((3.25*351),-1) -> 1140 | H86: TOTAL: | I86: =SUM(I83:I85) -> 601460 | J86: =SUM(J83:J85) -> 388640 | K86: 601460 | L86: 388640 | M86: 601460 | N86: 388640 | O86: 601460 | P86: 388640
A87: =A85/10000 -> 5.898 | B87: Ç Surface È | D87: Surface È | E87: =SUM(E82:E83)/10000 -> 11.10213
D88: p. 1 ha
A89: =A98 -> 6462076 | B89: GREENHOUSE | C89: CIF & Auxiliary Facilities | D89: Construction | E89: =1678165 -> 1678165
A90: 0 | B90: Constr. & commiss.
A91: 6800 | B91: Training 4 x €1700 | C91: =A91+A92 -> 48800 | D91: Equipment | E91: =837750 -> 837750
A92: 42000 | B92: Supervision p.Yr | D92: Supervision | E92: 159600
A93: 180000 | B93: Trucking | C93: 140 trucks | D93: Shipping+Trucking | E93: =189500+A93 -> 369500
A94: =ROUND((SUM(A89:A93)),-1) -> 6690880 | B94: Price | D94: Price | E94: =ROUND((SUM(E89:E93)*T3),-1) -> 2496910
A95: =A89/A87 -> 1095638.522 | B95: ← = 1 ha = →
A96: =A95 -> 1095638.522
A98: 6462076

Sheet Cap.Goods
D3: Level ① | E3: Zoom 152 Capital Goods and Services | Y3: 1 | Z3: =Intro!V2 -> 1.219512195
P4: =BUDGET!D13 -> 2019-06-30
B5: A | C5: Adv.% | D5: CAPITAL INVESTMENT EXPORT (Loan "A") | I5: PROJECT FINANCE | K5: D | L5: → | M5: OWN FUNDS Loan "D" | O5: Loan "A" + VAT + "D" | Q5: TOTAL | T5: Check
A6: Ø | C6: =Intro!M16 -> 5.898 | F6: Net Price | G6: + VAT incl. | H6: Advance | I6: Balance | M6: =N6 -> 0 | N6: 0 | O6: Advance | P6: Balance | Q6: Value | S6: → | T6: ↓
A7: Ø | C7: 0.2 | E7: Greenhouse turnkey complex, DDP | F7: =SUM(F8:F13) -> 7430876 | T7: =IF(SUM(O8:P8)=(Intro!S57*D7),"True","False") -> False | U7: Loan "A" | V7: Purchase, exported cap. goods and services; delivery DDP*
E8: Greenhouse set with the operating structure | F8: =Intro!$S$57 -> 6702076 | H8: =C7*F8*(1-$N$6) -> 1340415.2 | I8: =(100%-C7)*F8-(100%-C7)*F8*$N$6 -> 5361660.8 | M8: =C7*F8*$N$6 -> 0 | N8: =(100%-C7)*F8*$N$6 -> 0 | O8: =H8+M8 -> 1340415.2 | P8: 5361660.8 | Q8: =O8+P8 -> 6702076 | T8: =IF(SUM(O9:P9)=Intro!S59,"True","False") -> False | U8: Conditional
C9: 0.25 | E9: Construction and installation | F9: =Intro!S58 -> 500000 | H9: =C9*F9*(1-$N$6) -> 125000 | I9: =(100%-C9)*F9-(100%-C9)*F9*$N$6 -> 375000 | M9: =C9*F9*$N$6 -> 0 | N9: =(100%-C9)*F9*$N$6 -> 0 | O9: 125000 | P9: 375000 | Q9: =O9+P9 -> 500000 | T9: =IF(SUM(O10:P10)=Intro!S60,"True","False") -> False | U9: Loan "B" | V9: Could be up to 30% of original part of the export paid by
A10: Ø | C10: 0 | E10: Truck transport | F10: =Intro!S59 -> 180000 | H10: =C10*F10*(1-$N$6) -> 0 | I10: =(100%-C10)*F10-(100%-C10)*F10*$N$6 -> 180000 | M10: =C10*F10*$N$6 -> 0 | N10: =(100%-C10)*F10*$N$6 -> 0 | O10: 0 | P10: 180000 | Q10: =O10+P10 -> 180000 | V10: Loan "A" Greenhouse base, assembling, infrastructure and
C11: 0 | E11: Half a Yr supervision and training | F11: =Intro!S60+Intro!S61 -> 48800 | H11: =C10*F11*(1-$N$6) -> 0 | I11: =(100%-C10)*F11-(100%-C10)*F11*$N$6 -> 48800 | M11: =C10*F11*$N$6 -> 0 | N11: =(100%-C10)*F11*$N$6 -> 0 | O11: 0 | P11: 48800 | Q11: =O11+P11 -> 48800 | T11: =IF(SUM(#REF!)=Intro!S61,"True","False") ->  | V11: other LTAssets - all one-off local country costs (up to 30%
V12: of original part of export value)
E13: Pickup truck for products and staff . | G13: 0 | H13: =C13*F13*(1-$N$6) -> 0 | I13: =(100%-C13)*F13-(100%-C13)*F13*$N$6 -> 0 | M13: =C13*F13*$N$6 -> 0 | N13: =(100%-C13)*F13*$N$6 -> 0 | O13: =H13+M13 -> 0 | P13: 0 | Q13: =O13+P13 -> 0 | T13: =IF(SUM(O13:P13)=Intro!S67,"True","False") -> True | U13: Loan "C" | V13: Permanent purchase of production materials and seasonal trade (conditionally - the start-up working materials)
B14: =IF(C15<=50%,"","M") ->  | E14: SubTOTAL: | F14: =SUM(F8:F13) -> 7430876 | G14: =SUM(G7:G13) -> 0 | H14: =SUM(H8:H13) -> 1465415.2 | I14: =SUM(I8:I13) -> 5965460.8 | M14: =SUM(M8:M13) -> 0 | N14: =SUM(N8:N13) -> 0 | O14: =SUM(O8:O13) -> 1465415.2 | P14: =SUM(P8:P13) -> 5965460.8 | Q14: =SUM(Q8:Q13) -> 7430876 | T14: =IF(F14=Q14,"True","False") -> True
B15: =IF(C15<=50%,"C","") -> C | C15: =F20/F21 -> 0 | E15: ELIGIBLE FOREIGN CONTENT (Loan "A") | F15: Net Price | G15: VAT incl. | H15: Advance | I15: Balance | V15: Own funds (Loan "C"). Credit percentage down payment,
U16: Loan "D"
C17: =$C$7 -> 0.2 | D17: =100%-D7 -> 1 | E17: Greenhouse Screening plots and materials | H17: =C17*F17-C17*F17*$N$6 -> 0 | I17: =(100%-C17)*F17-(100%-C17)*F17*$N$6 -> 0 | M17: =C17*F17*$N$6 -> 0 | N17: =(100%-C17)*F17*$N$6 -> 0 | O17: =H17+M17 -> 0 | P17: 0 | Q17: =O17+P17 -> 0 | T17: =IF(SUM(O17:P17)=Intro!S57*D17,"True","False") -> False | V17: when required (as ECA's practice)
C18: =$C$7 -> 0.2 | E18: Plants, fertilizers, pesticides, substrate | H18: =C18*F18-C18*F18*$N$6 -> 0 | I18: =(100%-C18)*F18-(100%-C18)*F18*$N$6 -> 0 | M18: =C18*F18*$N$6 -> 0 | N18: =(100%-C18)*F18*$N$6 -> 0 | O18: 0 | P18: 0 | Q18: =O18+P18 -> 0 | V18: Involve percentage of own funds, if required, in Cell N6 and click
C19: 0 | E19: Shipping | H19: =C19*F19-C19*F19*$N$6 -> 0 | I19: =(100%-C19)*F19-(100%-C19)*F19*$N$6 -> 0 | M19: =C19*F19*$N$6 -> 0 | N19: =(100%-C19)*F19*$N$6 -> 0 | O19: 0 | P19: 0 | Q19: =O19+P19 -> 0 | V19: % button left
E20: SubTOTAL: | F20: =SUM(F17:F19) -> 0 | G20: =SUM(G17:G19) -> 0 | H20: =SUM(H17:H19) -> 0 | I20: =SUM(I17:I19) -> 0 | M20: =SUM(M17:M19) -> 0 | N20: =SUM(N17:N19) -> 0 | O20: =SUM(O17:O19) -> 0 | P20: =SUM(P17:P19) -> 0 | Q20: =SUM(Q17:Q19) -> 0 | U20: * DDP - Delivered duty paid
C21: Export | D21: =F21 -> 7430876 | E21: Loan "A", EXPORT VALUE, TOTAL: | F21: =F14+F20 -> 7430876 | G21: =G14+G20 -> 0 | H21: =H14+H20 -> 1465415.2 | I21: =I14+I20 -> 5965460.8 | M21: =M14+M20 -> 0 | N21: =N14+N20 -> 0 | O21: =O14+O20 -> 1465415.2 | P21: =P14+P20 -> 5965460.8 | Q21: =Q14+Q20 -> 7430876 | T21: =IF((O21+P21)=Intro!S56,"True","False") -> False
B23: B | D23: LOCAL COUNTRY COSTS (Loan "B") | K23: D | L23: → | M23: OWN FUNDS Loan "D" | O23: Loan "A" + VAT + "D" | Q23: TOTAL
C24: Advance, % | F24: Net Price | G24: VAT incl. | H24: Advance | I24: Balance | M24: =N24 -> 0 | N24: =N6 -> 0 | O24: Advance | P24: Balance | Q24: Value | S24: →
D25: Capital investment | F25: =SUM(F27:F31) -> 653967.9434 | G25: =SUM(G27:G31) -> 657082 | H25: =SUM(H27:H31) -> 75708.2 | I25: =SUM(I27:I31) -> 578259.7434 | M25: =SUM(M27:M31) -> 0 | N25: 0 | O25: =SUM(O27:O31) -> 75708.2 | P25: =SUM(P27:P31) -> 578259.7434 | Q25: =SUM(Q27:Q31) -> 653967.9434 | T25: =IF((O25+P25)=Q25,"True","False") -> True
C26: 4.7 | D26: =Intro!C82 -> 58368 | E26: available farmland with license | G26: =C26*D26 -> 274329.6 | H26: =F26 -> 0 | I26: =G26-H26 -> 274329.6 | M26: =H26*$M$24 -> 0 | N26: =I26*$M$24 -> 0 | O26: =H26-M26 -> 0 | P26: =I26-N26 -> 274329.6
A27: Ø | C27: 0.2 | D27: Constructive drawings, permits - electricity, water, etc. | F27: =Intro!S49 -> 50000 | G27: =Intro!U49 -> 302000 | H27: =C27*F27-C27*F27*$N$6 -> 10000 | I27: =(100%-C27)*F27-(100%-C27)*F27*$N$6 -> 40000 | M27: =C27*F27*$N$24 -> 0 | N27: =(100%-C27)*F27*$N$6 -> 0 | O27: =H27+M27 -> 10000 | P27: 40000 | Q27: =O27+P27 -> 50000 | T27: =IF(SUM(O27:P27)=Intro!S50,"True","False") -> False
A28: Ø | C28: 0.2 | D28: Terrain, infrastructure - hedge, water § power supply | F28: =Intro!S50 -> 302000 | G28: =Intro!U50 -> 302000 | H28: =C28*F28-C28*F28*$N$6 -> 60400 | I28: =(100%-C28)*F28-(100%-C28)*F28*$N$6 -> 241600 | M28: =C28*F28*$N$24 -> 0 | N28: =(100%-C28)*F28*$N$6 -> 0 | O28: 60400 | P28: 241600 | Q28: =O28+P28 -> 302000 | T28: =IF(SUM(O28:P28)=Intro!#REF!,"True","False") -> 
C29: 0.1 | D29: Other unforeseen expenses - land, video control, etc. | F29: =Intro!S51 -> 53082 | G29: =Intro!U51 -> 53082 | H29: =C29*F29-C29*F29*$N$6 -> 5308.2 | I29: =(100%-C29)*F29-(100%-C29)*F29*$N$6 -> 47773.8 | M29: =C29*F29*$N$24 -> 0 | N29: =(100%-C29)*F29*$N$6 -> 0 | O29: 5308.2 | P29: 47773.8 | Q29: =O29+P29 -> 53082 | T29: =IF(SUM(O29:P29)=Intro!S51,"True","False") -> True
A30: Ø | C30: 0 | D30: One year - plants, fertilizers, pesticides, substrate | F30: =Intro!S55 -> 248885.9434 | G30: =Intro!U52 -> 0 | H30: =C30*F30-C30*F30*$N$6 -> 0 | I30: =(100%-C30)*F30-(100%-C30)*F30*$N$6 -> 248885.9434 | M30: =C30*F30*$N$24 -> 0 | N30: =(100%-C30)*F30*$N$6 -> 0 | O30: 0 | P30: =I30+N30 -> 248885.9434 | Q30: =O30+P30 -> 248885.9434 | T30: =IF(SUM(O30:P30)=Intro!S52,"True","False") -> False
D31: Truck transport | G31: 0 | H31: =C31*F31-C31*F31*$N$6 -> 0 | I31: =(100%-C31)*F31-(100%-C31)*F31*$N$6 -> 0 | N31: =(100%-C31)*F31*$N$24 -> 0 | O31: 0 | P31: =I31+N31 -> 0 | Q31: =O31+P31 -> 0
D32: Financial modeling package and OCFCS | F32: =SUM(F33:F34) -> 268000 | G32: =SUM(G33:G34) -> 268000 | H32: =SUM(H33:H34) -> 254000 | I32: =SUM(I33:I34) -> 14000 | M32: =SUM(M33:M34) -> 0 | N32: =SUM(N33:N34) -> 0 | O32: =SUM(O33:O34) -> 254000 | P32: =SUM(P33:P34) -> 14000 | Q32: =SUM(Q33:Q34) -> 268000 | T32: =IF((O32+P32)=Q32,"True","False") -> True
C33: 1 | D33: Cash-flows, profitability & sensitivity analysis + | F33: =Intro!S53 -> 240000 | G33: =Intro!U53 -> 240000 | H33: =C33*F33-C33*F33*$N$6 -> 240000 | I33: =(100%-C33)*F33-(100%-C33)*F33*$N$6 -> 0 | M33: =C33*F33*$N$6 -> 0 | N33: =(100%-C33)*F33*$N$6 -> 0 | O33: =H33+M33 -> 240000 | P33: =I33+N33 -> 0 | Q33: =O33+P33 -> 240000 | T33: =IF(SUM(O33:P33)=Intro!S53,"True","False") -> True
B34: =IF(C35<=30%,"C","N") -> C | C34: 0.5 | D34: Financial risk assessment and management | F34: =Intro!S54 -> 28000 | G34: =Intro!U54 -> 28000 | H34: =C34*F34-C34*F34*$N$6 -> 14000 | I34: =(100%-C34)*F34-(100%-C34)*F34*$N$6 -> 14000 | M34: =C34*F34*$N$6 -> 0 | N34: =(100%-C34)*F34*$N$6 -> 0 | O34: =H34+M34 -> 14000 | P34: =I34+N34 -> 14000 | Q34: =O34+P34 -> 28000 | T34: =IF(SUM(O34:P34)=Intro!S54,"True","False") -> True
C35: =F35/F14 -> 0.1240725782 | E35: LOCAL COUNTRY COSTS (LCC), TOTAL: | F35: =F25+F32 -> 921967.9434 | G35: =G25+G32 -> 925082 | H35: =H25+H32 -> 329708.2 | I35: =I25+I32 -> 592259.7434 | M35: =M25+M32 -> 0 | N35: =N25+N32 -> 0 | O35: =O25+O32 -> 329708.2 | P35: =P25+P32 -> 592259.7434 | Q35: =Q25+Q32 -> 921967.9434 | T35: =IF(SUM(O35:P35)=Q35,"True","False") -> True
F36: =F35/F21 -> 0.1240725782 | G36: =G35/G21 -> 
E37: Import + Local Costs: | F37: =F21+F35 -> 8352843.943 | G37: =G21+G35 -> 925082 | H37: =H21+H35 -> 1795123.4 | I37: =I21+I35 -> 6557720.543 | K37: D | L37: → | M37: =M21+M35 -> 0 | N37: =N21+N35 -> 0 | O37: WORKING CAPITAL ↓ | Q37: =Q21+Q35 -> 8352843.943
M38: Loan "D" | N38: =M37+N37 -> 0 | P38: Optional: | Q38: 20000
C39: 0.001 | E39: Ann. Interests: | G39: 0.04 | H39: =G39 -> 0.04 | M39: 0.055 | Q39: =SUM(Q37:Q38) -> 8372843.943
A40: Ø | C40: INSURANCE | E40: DEPRECIATION OF ASSETS | G40: Price | H40: =SUM(H41:H46) -> 1080332.16 | L40: KEY NOTES:
C41: 0.001 | D41: =C41*G41 -> 6752.076 | E41: up to; for industry equipment | F41: 0.16 | G41: =F8+F17+F27 -> 6752076 | H41: =G41*F41 -> 1080332.16 | K41: 1 | M41: *Gradients | N41: in Cells | O41: temporary put an approximate value in it without document background and
A42: Ø | E42: Building | F42: 0.04 | G42: 0 | H42: =G42*F42 -> 0 | M42: supported | N42: in Cells | O42: values with document. Icon - for URL to data resource.
A43: Ø | K43: 2 | M43: The icons or ride at Internet sources.
A44: Ø | C44: 0.02 | D44: =C44*G44 -> 0 | E44: Motor car | F44: 0.25 | G44: =F13 -> 0 | H44: =F44*G44 -> 0 | K44: 3 | M44: Info icons | N44: provides link to author's information sources.
A45: Ø | C45: 0.02 | D45: =C45*G45 -> 0 | E45: Truck | F45: 0.25 | G45: =F31 -> 0 | H45: =F45*G45 -> 0 | K45: 4 | M45: Various fonts and background colors represent similar group data resources.
A46: Ø | D46: =SUM(D41:D45) -> 6752.076 | E46: Intangible assets (Fin. modeling) | K46: 5 | M46: It's recommendable to follow these indications in order to facilitate the structure identification. | W46: Go to BUDGET and Financial analyzes

Sheet BUDGET
A1: [ Level① | B1: PRE-DESIGN BACKGROUND. | C1: Sales | D1: Jan | E1: Feb | F1: 2016-03-31 | G1: 2016-04-30 | H1: 2016-05-31 | I1: 2015-06-30 | J1: 2015-07-31 | K1: 2015-08-31 | L1: 2015-09-30 | M1: 2015-10-31 | N1: 2015-11-30 | O1: 2015-12-31 | P1: i TOTAL p.a.i | Q1: =($Q$2/Intro!U39+$Q$3/Intro!U40)/2 -> 0.5769066315 | R1: =($R$2/Intro!U39+$R$3/Intro!U40)/2 -> 0.4230933685
A2: Back | B2: Value of production | C2: IncomeTx Mo | D2: =Intro!I39 -> 0 | E2: =Intro!J39 -> 0 | F2: =Intro!K39 -> 379629.7243 | G2: =Intro!L39 -> 534932.7934 | H2: =Intro!M39 -> 457381.5838 | I2: =Intro!N39 -> 303115.2062 | J2: =Intro!O39 -> 269503.4954 | K2: =Intro!P39 -> 219577.9396 | L2: =Intro!Q39 -> 220714.956 | M2: =Intro!R39 -> 276629.4115 | N2: =Intro!S39 -> 121894.8507 | O2: =Intro!T39 -> 94171.71456 | P2: =SUM(D2:O2) -> 2877551.675 | Q2: =SUM(D2:I2) -> 1675059.308 | R2: =SUM(J2:O2) -> 1202492.368 | V2: =Q2+R2 -> 2877551.675
A3: From Level 0 | B3: Business Plan | C3: IncomeCx Mo | D3: =Intro!I40 -> 0 | E3: =Intro!J40 -> 73750.72094 | F3: =Intro!K40 -> 150558.7825 | G3: =Intro!L40 -> 190406.7498 | H3: =Intro!M40 -> 43703.70155 | I3: =Intro!N40 -> 125701.1804 | J3: =Intro!O40 -> 103264.5465 | K3: =Intro!P40 -> 114784.693 | L3: =Intro!Q40 -> 26629.78708 | M3: =Intro!R40 -> 74647.7303 | N3: =Intro!S40 -> 97556.01055 | O3: =Intro!T40 -> 20721.71589 | P3: =SUM(D3:O3) -> 1021725.619 | Q3: =SUM(D3:I3) -> 584121.1352 | R3: =SUM(J3:O3) -> 437604.4834
A4: =Intro!U47 -> 8344843.943 | B4:  Lender/Insurer (Loan "A") | C4: Var. Costs | D4: 1 | E4: =D4+1 -> 2 | F4: =E4+1 -> 3 | G4: 4 | H4: 5 | I4: 6 | J4: 7 | K4: 8 | L4: 9 | M4: 10 | N4: 11 | O4: 12 | Q4: =(Q5/P5+Q6/P6)/2 -> 0.5615236984 | R4: =(R5/P5+R6/P6)/2 -> 0.4384763016
A5: =Intro!V48 -> 1173967.943 | B5:  Local Country Costs +VAT | C5: Heating | D5: =Intro!I42 -> 40552.19425 | E5: =Intro!J42 -> 36865.68879 | F5: =Intro!K42 -> 31324.30325 | G5: =Intro!L42 -> 23962.70828 | H5: =Intro!M42 -> 10994.47366 | I5: =Intro!N42 -> 0 | J5: =Intro!O42 -> 0 | K5: =Intro!P42 -> 0 | L5: =Intro!Q42 -> 0 | M5: =Intro!R42 -> 18432.80916 | N5: =Intro!S42 -> 27649.21374 | O5: =Intro!T42 -> 31335.78967 | P5: =SUM(D5:O5) -> 221117.1808 | Q5: =SUM(D5:I5) -> 143699.3682 | R5: =SUM(J5:O5) -> 77417.81257
A6: =Intro!V47 ->  | C6: Packing | D6: =Intro!I43 -> 0 | E6: =Intro!J43 -> 2782.346112 | F6: =Intro!K43 -> 16817.51591 | G6: =Intro!L43 -> 28975.03677 | H6: =Intro!M43 -> 27949.89655 | I6: =Intro!N43 -> 36165.01727 | J6: =Intro!O43 -> 38320.03145 | K6: =Intro!P43 -> 34285.13003 | L6: =Intro!Q43 -> 21090.84104 | M6: =Intro!R43 -> 16611.85855 | N6: =Intro!S43 -> 9621.245205 | O6: =Intro!T43 -> 5541.038295 | P6: =SUM(D6:O6) -> 238159.9572 | Q6: =SUM(D6:I6) -> 112689.8126 | R6: =SUM(J6:O6) -> 125470.1446
C7: Running costs | P7: =SUM(D7:O7) -> 0 | Q7: =SUM(D7:I7) -> 0 | R7: =SUM(J7:O7) -> 0
C8: 1 Yr Oper. Costs | D8: T Fertilizers C | F8: T+C Seeds | G8: Substrate | H8: 1-6 Water+Electricity 7-12 | J8: 1-6 SubTotal | K8: 7-12 SubTotal | L8: ß 1-Yr biennially 2 Yr à | N8: 1-6 Mo All Costs 7-12 Mo | P8: =SUM(P5:P7) -> 459277.138 | Q8: =SUM(Q5:Q7) -> 256389.1808 | R8: =SUM(R5:R7) -> 202887.9571
C9: =Intro!M16 -> 5.898 | D9: =Intro!H52 -> 33203.80334 | E9: =Intro!H53 -> 14230.20143 | F9: =Intro!H56 -> 115072.6209 | G9: =Intro!H59 -> 44494.46799 | H9: =Intro!O55 -> 67796.3304 | I9: =Intro!O61 -> 41906.4696 | J9: =SUM(D9:G9)/2+H9 -> 171296.8772 | K9: =SUM(D9:G9)/2+I9 -> 145407.0164 | L9: ←WITH | M9: WITHOUT→ | N9: =SUM(D9:F9)/2+H9 -> 149049.6432 | O9: =SUM(D9:F9)/2+I9 -> 123159.7824 | Q9: ❶ 30 Jun | R9: 31 Dec ❷
C10: Market products | D10: 0 | E10: 0 | F10: 0 | G10: 20000 | H10: 30000 | I10: 40000 | J10: 50000 | K10: 40000 | L10: 30000 | M10: 30000 | N10: 0 | O10: 0 | P10: =SUM(D10:O10) -> 240000 | Q10: =SUM(D10:I10) -> 90000 | R10: =SUM(J10:O10) -> 150000
A11: From [ Level① | C11: Nr of Periods | D11: 1 | E11: =D11+1 -> 2 | F11: 3 | G11: 4 | H11: 5 | I11: 6 | J11: 7 | K11: 8 | L11: 9 | M11: 10 | N11: 11 | O11: 12 | P11: 13 | Q11: 14 | R11: =Q11+1 -> 15 | S11: =R11+1 -> 16
C12: Nr of Monts | D12: 6 | E12: =D12+6 -> 12 | F12: 18 | G12: 24 | H12: 30 | I12: 36 | J12: 42 | K12: =J12+6 -> 48 | L12: 54 | M12: 60 | N12: 66 | O12: 72 | P12: 78 | Q12: 84 | R12: 90 | S12: =R12+6 -> 96
B13: Repayment periods | C13: Date: | D13: 2019-06-30 | E13: 2019-12-31 | F13: 2020-06-30 | G13: 2020-12-31 | H13: 2021-06-30 | I13: 2021-12-31 | J13: 2022-06-30 | K13: 2022-12-31 | L13: 2023-06-30 | M13: 2023-12-31 | N13: 2024-06-30 | O13: 2024-12-31 | P13: 2025-06-30 | Q13: 2025-12-31 | R13: 2026-06-30 | S13: 2026-12-31
A14: ='Cap.Goods'!N38 -> 0 | B14:  Own Funds Loan "D" | J14: Level ②
A15: =Intro!T51 -> -198000 | B15:  VAT of Loans "A"+"B" Return↔ | D15: =Intro!$T$51 -> -198000 | E15: =-A15 -> 198000
A16: ='Cap.Goods'!Q21 -> 7430876 | B16: Export of cap. goods | C16: =SUM(D16:F16) -> 7430876 | D16: ='Cap.Goods'!O21 -> 1465415.2 | E16: ='Cap.Goods'!P21 -> 5965460.8
A17: ='Cap.Goods'!Q35 -> 921967.9434 | B17: Local country costs | C17: =SUM(D17:F17) -> 921967.9434 | D17: ='Cap.Goods'!O35 -> 329708.2 | E17: ='Cap.Goods'!P35 -> 592259.7434
A18: ='Cap.Goods'!Q37 -> 8352843.943 | B18: Capital Investment | C18: =SUM(D18:F18) -> 8352843.943 | D18: =SUM(D15:D17) -> 1597123.4 | E18: =SUM(E15:E17) -> 6755720.543
B19:  Working Capital (Loan"C") | C19: =SUM(F19:Q19) -> 1440000 | F19: =Q10 -> 90000 | G19: =$R$10 -> 150000 | H19: =$Q$10 -> 90000 | I19: =$R$10 -> 150000 | J19: =$Q$10 -> 90000 | K19: =$R$10 -> 150000 | L19: =$Q$10 -> 90000 | M19: =$R$10 -> 150000 | N19: =$Q$10 -> 90000 | O19: =$R$10 -> 150000 | P19: =$Q$10 -> 90000 | Q19: =$R$10 -> 150000 | R19: =$Q$10 -> 90000 | S19: =$R$10 -> 150000
A20: Sales, | B20: Revenue Pro-forma Budget | C20: =SUM(F20:Q20) -> 25150338.55 | D20: =D44 -> 0 | E20: 0 | F20: =F44 -> 2191405.03 | G20: =G44 -> 1590893.946 | H20: =H44 -> 2259180.443 | I20: 1640096.851 | J20: 2372139.465 | K20: =K44 -> 1722101.694 | L20: 2485098.487 | M20: 1804106.536 | N20: 2598057.509 | O20: 1886111.379 | P20: 2665832.923 | Q20: =Q44 -> 1935314.284 | R20: =R44 -> 2259180.443 | S20: =S44 -> 1968116.221
A21: Less: | C21: Date: | D21: =D13 -> 2019-06-30 | E21: =E13 -> 2019-12-31 | F21: 2020-06-30 | G21: 2020-12-31 | H21: 2021-06-30 | I21: 2021-12-31 | J21: 2022-06-30 | K21: 2022-12-31 | L21: 2023-06-30 | M21: 2023-12-31 | N21: 2024-06-30 | O21: 2024-12-31 | P21: 2025-06-30 | Q21: 2025-12-31 | R21: 2026-06-30 | S21: 2026-12-31
A22: Costs, | B22: TOTAL (in €) | C22: =SUM(D22:S22) -> 14741578.19 | D22: =SUM(D23:D26) -> 15700 | E22: =SUM(E23:E26) -> 142242.13 | F22: 463331.1016 | G22: =SUM(G23:G26) -> 1496548.38 | H22: =SUM(H23:H26) -> 617317.2449 | I22: 1624284.663 | J22: =SUM(J23:J26) -> 644264.5444 | K22: 1651231.962 | L22: =SUM(L23:L26) -> 626844.2776 | M22: 1633811.696 | N22: 654048.807 | O22: 1661016.225 | P22: 636892.7154 | Q22: =SUM(Q23:Q26) -> 1643860.133 | R22: =SUM(R23:R26) -> 651534.7062 | S22: =SUM(S23:S26) -> 578649.6029
B23: Variable costs | C23: =SUM(D23:Q23) -> 4241086.892 | D23: =D55 -> 0 | E23: =E55 -> 0 | F23: =F55 -> 259701.0476 | G23: =G55 -> 205474.0904 | H23: =H55 -> 408750.6908 | I23: =I55 -> 328633.8728 | J23: 430997.9248 | K23: 350881.1068 | L23: 408750.6908 | M23: 328633.8728 | N23: 430997.9248 | O23: 350881.1068 | P23: 408750.6908 | Q23: 328633.8728 | R23: =R55 -> 428809.1055 | S23: =S55 -> 349171.9262
B24: Fixed costs | C24: =SUM(D24:Q24) -> 2649928.677 | D24: =D59 -> 15700 | E24: 131597.103 | F24: 192985.027 | G24: 200097.103 | H24: 197921.527 | I24: 204673.603 | J24: 202621.5925 | K24: 209373.6685 | L24: 207448.5598 | M24: 214200.6358 | N24: 212405.8552 | O24: 219157.9312 | P24: 217496.9975 | Q24: 224249.0735 | R24: 212080.5737 | S24: 218832.6497
B25: Marketing & Risk Mngmt | C25: =SUM(D25:Q25) -> 138385.3512 | D25: =D65 -> 0 | E25: 10645.02701 | F25: 10645.02701 | G25: 10645.02701 | H25: 10645.02701 | I25: 10645.02701 | J25: 10645.02701 | K25: 10645.02701 | L25: 10645.02701 | M25: 10645.02701 | N25: 10645.02701 | O25: 10645.02701 | P25: 10645.02701 | Q25: 10645.02701 | R25: 10645.02701 | S25: 10645.02701
A26: ='Cap.Goods'!H40 -> 1080332.16 | B26: Depreciations | G26: ='Cap.Goods'!$H$41+'Cap.Goods'!H44+'Cap.Goods'!H45 -> 1080332.16 | I26: =G26 -> 1080332.16 | K26: =G26 -> 1080332.16 | M26: =G26 -> 1080332.16 | O26: =M26-'Cap.Goods'!H44-'Cap.Goods'!H45 -> 1080332.16 | Q26: =O26 -> 1080332.16 | S26: ='Cap.Goods'!H44+'Cap.Goods'!H45 -> 0
B27: Cash Flows (EBIT) | D27: =D20-D22 -> -15700 | E27: =E20-E22 -> -142242.13 | F27: =F20-F22 -> 1728073.928 | G27: =G20-G22 -> 94345.56516 | H27: =H20-H22 -> 1641863.198 | I27: =I20-I22 -> 15812.18826 | J27: =J20-J22 -> 1727874.921 | K27: 70869.73132 | L27: 1858254.21 | M27: 170294.8406 | N27: 1944008.702 | O27: 225095.1538 | P27: =P20-P22 -> 2028940.207 | Q27: =Q20-Q22 -> 291454.1509 | R27: =R20-R22 -> 1607645.737 | S27: =S20-S22 -> 1389466.618 | U27: =SUM(D27:Q27) -> 11638944.67
A28: Less: | B28: Interests Loans "A" + "B" | D28: =D86+D91+D96 -> 0 | E28: 6594 | F28: 17373 | G28: 164904 | H28: 154490 | I28: 134862 | J28: =J86+J91+J96 -> 116211 | K28: 98614 | L28: 82147 | M28: 66893 | N28: 52940 | O28: 40377 | P28: 29301 | Q28: =Q86+Q91+Q96 -> 19810 | R28: =R86+R91+R96 -> 12011 | S28: =S86+S91+S96 -> 6013 | U28: =SUM(D28:Q28) -> 984516
B29: EBT | D29: =D27-D28 -> -15700 | E29: -148836.13 | F29: 1710700.928 | G29: =G27-G28 -> -70558.43484 | H29: =H27-H28 -> 1487373.198 | I29: -119049.8117 | J29: 1611663.921 | K29: -27744.26868 | L29: 1776107.21 | M29: 103401.8406 | N29: 1891068.702 | O29: 184718.1538 | P29: =P27-P28 -> 1999639.207 | Q29: =Q27-Q28 -> 271644.1509 | R29: =R27-R28 -> 1595634.737 | S29: =S27-S28 -> 1383453.618 | U29: =SUM(D29:Q29) -> 10654428.67 | V29: =U29/$Q$12 -> 126838.4365
A30: Less: | B30: Income tax | C30: 0.1 | G30: =(D29+E29+F29)*C30 -> 154616.4798 | I30: =(G29+H29)*$C$30-H31 -> 64373.23643 | K30: =(I29+J29)*$C$30-J31 -> 117074.7927 | M30: =(K29+L29)*$C$30-L31 -> 116298.8978 | O30: =(M29+N29)*$C$30-N31 -> 141297.6054 | Q30: =(O29+P29)*$C$30-P31 -> 147786.9334 | S30: =(Q29+R29)*$C$30-R31 -> 112834.4221 | U30: =SUM(D26:Q26) -> 6481992.96
B31: Advance deposit | H31: =G30/2 -> 77308.2399 | J31: =I30/2 -> 32186.61821 | L31: =K30/2 -> 58537.39634 | N31: =M30/2 -> 58149.44888 | P31: =O30/2 -> 70648.80271 | R31: =Q30/2 -> 73893.4667 | U31: =SUM(U29:U30) -> 17136421.63
B32: EAT | C32: =SUM(D32:Q32) -> 9616150.215 | D32: =D29-D30-D31 -> -15700 | E32: =E29-E30-E31 -> -148836.13 | F32: =F29-F30-F31 -> 1710700.928 | G32: =G29-G30-G31 -> -225174.9146 | H32: =H29-H30-H31 -> 1410064.958 | I32: =I29-I30-I31 -> -183423.0482 | J32: =J29-J30-J31 -> 1579477.303 | K32: =K29-K30-K31 -> -144819.0614 | L32: =L29-L30-L31 -> 1717569.813 | M32: =M29-M30-M31 -> -12897.05715 | N32: 1832919.254 | O32: 43420.54835 | P32: 1928990.405 | Q32: 123857.2175 | R32: 1521741.27 | S32: 1270619.196 | U32: =SUM(D32:Q32) -> 9616150.215 | V32: =U32/$Q$12 -> 114477.9787
A33: Add: | B33: Total depreciations | E33: =E26 -> 0 | G33: =G26 -> 1080332.16 | H33: =H26 -> 0 | I33: 1080332.16 | J33: 0 | K33: 1080332.16 | L33: 0 | M33: 1080332.16 | N33: 0 | O33: 1080332.16 | P33: 0 | Q33: 1080332.16
A34: Add: | B34: Tax advance deposited
A35: ► | B35: Operating Cash Flows | C35: =SUM(D35:S35) -> 18890503.64 | D35: =SUM(D32:D34) -> -15700 | E35: -148836.13 | F35: 1710700.928 | G35: 855157.2454 | H35: 1410064.958 | I35: 896909.1118 | J35: 1579477.303 | K35: 935513.0986 | L35: =SUM(L32:L34) -> 1717569.813 | M35: 1067435.103 | N35: 1832919.254 | O35: 1123752.708 | P35: 1928990.405 | Q35: 1204189.378 | R35: =SUM(R32:R34) -> 1521741.27 | S35: =SUM(S32:S34) -> 1270619.196
A36: Less: | D36: =-D18 -> -1597123.4 | E36: =-E18 -> -6755720.543 | F36: =-F18 -> 0
A37: ► (NCFs) | B37: Project's Net Cash Flows | C37: =SUM(D37:S37) -> 10537659.7 | D37: =D35+D36 -> -1612823.4 | E37: -6904556.673 | F37: 1710700.928 | G37: 855157.2454 | H37: =H35+H36 -> 1410064.958 | I37: =I35+I36 -> 896909.1118 | J37: 1579477.303 | K37: 935513.0986 | L37: 1717569.813 | M37: 1067435.103 | N37: 1832919.254 | O37: 1123752.708 | P37: =P35+P36 -> 1928990.405 | Q37: =Q35+Q36 -> 1204189.378 | R37: =R35+R36 -> 1521741.27 | S37: =S35+S36 -> 1270619.196
A38: Less: Loans— | B38: Installments (principal + interest) | D38: =-(D88+D93+D98-D28) -> 0 | E38: =-(E88+E93+E98-E28) -> 0 | F38: =-(F88+F93+F98-F28) -> 0 | G38: =-(G88+G93+G98-G28) -> -522904 | H38: =-(H88+H93+H98-H28) -> -533362 | I38: -544030 | J38: -554911 | K38: -566009 | L38: -577329 | M38: -588876 | N38: -600653 | O38: -612666 | P38: -624919 | Q38: -637418 | R38: -650166 | S38: -663169 | V38: =SUM(D38:Q38) -> -6363077
B39: Cash | D39: =D37+D38 -> -1612823.4 | E39: -6904556.673 | F39: 1710700.928 | G39: 332253.2454 | H39: 876702.9582 | I39: 352879.1118 | J39: =J37+J38 -> 1024566.303 | K39: =K37+K38 -> 369504.0986 | L39: =L37+L38 -> 1140240.813 | M39: 478559.1029 | N39: 1232266.254 | O39: 511086.7084 | P39: 1304071.405 | Q39: 566771.3775 | R39: 871575.2701 | S39: 607450.1963
A40: Cumulative NCFs (loan pay-off incl.) | C40: → | D40: =D39 -> -1612823.4 | E40: =D40+E39 -> -8517380.073 | F40: =E40+F39 -> -6806679.145 | G40: =F40+G39 -> -6474425.9 | H40: =G40+H39 -> -5597722.942 | I40: =H40+I39 -> -5244843.83 | J40: -4220277.527 | K40: -3850773.429 | L40: -2710532.616 | M40: -2231973.513 | N40: -999707.2591 | O40: =N40+O39 -> -488620.5508 | P40: =O40+P39 -> 815450.8538 | Q40: =P40+Q39 -> 1382222.231 | R40: =Q40+R39 -> 2253797.501 | S40: =R40+S39 -> 2861247.698
B41: Years : | D41: → | F41: -0.03 | G41: =E41+1 -> 1 | H41: 0 | I41: =G41+1 -> 2 | J41: =H41+5% -> 0.05 | K41: =I41+1 -> 3 | L41: =J41+5% -> 0.1 | M41: =K41+1 -> 4 | N41: =L41+5% -> 0.15 | O41: =M41+1 -> 5 | P41: =N41+3% -> 0.18 | Q41: =O41+1 -> 6 | R41: =P41+2% -> 0.2 | S41: =Q41+1 -> 7
A43: Income data. Selected year <+>: | C43: Calendar year | D43: =D13 -> 2019-06-30 | E43: =E13 -> 2019-12-31 | F43: 2020-06-30 | G43: 2020-12-31 | H43: 2021-06-30 | I43: 2021-12-31 | J43: 2022-06-30 | K43: 2022-12-31 | L43: 2023-06-30 | M43: 2023-12-31 | N43: 2024-06-30 | O43: 2024-12-31 | P43: 2025-06-30 | Q43: 2025-12-31 | R43: 2026-06-30 | S43: 2026-12-31
A44: =SUM(F44:Q44) -> 25150338.55 | B44: Sales | F44: =F45 -> 2191405.03 | G44: 1590893.946 | H44: 2259180.443 | I44: 1640096.851 | J44: 2372139.465 | K44: 1722101.694 | L44: 2485098.487 | M44: 1804106.536 | N44: 2598057.509 | O44: 1886111.379 | P44: 2665832.923 | Q44: 1935314.284 | R44: =R45 -> 2259180.443 | S44: =S45 -> 1968116.221
B45: ● Greenhouse own production | F45: =SUM(F46:F47) -> 2191405.03 | G45: =SUM(G46:G47) -> 1590893.946 | H45: 2259180.443 | I45: 1640096.851 | J45: 2372139.465 | K45: 1722101.694 | L45: 2485098.487 | M45: 1804106.536 | N45: 2598057.509 | O45: 1886111.379 | P45: 2665832.923 | Q45: 1935314.284 | R45: =SUM(R46:R48) -> 2259180.443 | S45: =SUM(S46:S48) -> 1968116.221
B46: • Tomatoes | F46: =Q2*(1+$F$41) -> 1624807.529 | G46: =R2*(1+$F$41) -> 1166417.597 | H46: =$Q$2 -> 1675059.308 | I46: =$R$2 -> 1202492.368 | J46: =$Q$2*(1+J41) -> 1758812.273 | K46: =$R$2*(1+J41) -> 1262616.986 | L46: =$Q$2*(1+L41) -> 1842565.239 | M46: =$R$2*(1+L41) -> 1322741.605 | N46: =$Q$2*(1+N41) -> 1926318.204 | O46: =$R$2*(1+N41) -> 1382866.223 | P46: =$Q$2*(1+P41) -> 1976569.983 | Q46: =$R$2*(1+P41) -> 1418940.994 | R46: =$Q$2 -> 1675059.308 | S46: =$R$2*(1+R41) -> 1442990.841
B47: • Cucumbers | F47: =Q3*(1+$F$41) -> 566597.5012 | G47: =R3*(1+$F$41) -> 424476.3489 | H47: =$Q$3 -> 584121.1352 | I47: =$R$3 -> 437604.4834 | J47: =$Q$3*(1+J41) -> 613327.192 | K47: =$R$3*(1+J41) -> 459484.7075 | L47: =$Q$3*(1+L41) -> 642533.2488 | M47: =$R$3*(1+L41) -> 481364.9317 | N47: =$Q$3*(1+N41) -> 671739.3055 | O47: =$R$3*(1+N41) -> 503245.1559 | P47: =$Q$3*(1+P41) -> 689262.9396 | Q47: =$R$3*(1+P41) -> 516373.2904 | R47: =$Q$3 -> 584121.1352 | S47: =$R$3*(1+R41) -> 525125.38
B48: • By-products
A49: OPERATIONAL AND RISK MANAGEMENT | C49: Option: Funding | E49: 1000 | F49: 0.5 | G49: 0.3 | H49: 0.2 | I49: =$E$49*F49 -> 500 | J49: =$E$49*G49 -> 300 | K49: =$E$49*H49 -> 200 | L49: 0
B50: Dynamic structure of new loan with | C50: 0.06 | D50: Select and | E50: ↑ ENTER ↑ | H50: New debt to add to the Costs→ | I50: 0 | J50: =I49*(1+$C$50/2) -> 515 | K50: =J49*(1+$C$50/2) -> 309 | L50: =K49*(1+$C$50/2) -> 206
A51: Sales, | B51: Current accounting reports
A52: Costs, | B52: TOTAL accounting reports
A53: OCFCS | B53: Cash Flow Statements ‒ | C53: Аccounting
B54: Income data (in €), EU Zone Periods: | C54: =C13 -> Date: | D54: =D13 -> 2019-06-30 | E54: =E13 -> 2019-12-31 | F54: 2020-06-30 | G54: 2020-12-31 | H54: 2021-06-30 | I54: 2021-12-31 | J54: 2022-06-30 | K54: 2022-12-31 | L54: 2023-06-30 | M54: 2023-12-31 | N54: 2024-06-30 | O54: 2024-12-31 | P54: 2025-06-30 | Q54: 2025-12-31 | R54: =#REF! ->  | S54: =T13 -> 00:00:00
B55: Variable costs | C55: =SUM(D55:S55) -> 5019067.924 | D55: =SUM(D56:D58) -> 0 | E55: =SUM(E56:E58) -> 0 | F55: =SUM(F56:F58)-F57 -> 259701.0476 | G55: =SUM(G56:G58)-G57 -> 205474.0904 | H55: =SUM(H56:H58) -> 408750.6908 | I55: =SUM(I56:I58) -> 328633.8728 | J55: =SUM(J56:J58) -> 430997.9248 | K55: 350881.1068 | L55: 408750.6908 | M55: 328633.8728 | N55: 430997.9248 | O55: =SUM(O56:O58) -> 350881.1068 | P55: 408750.6908 | Q55: 328633.8728 | R55: 428809.1055 | S55: 349171.9262
A56: =Q8 -> 256389.1808 | B56: 1st Heating, packing, running costs 2nd | C56: =R8 -> 202887.9571 | D56: 0 | E56: 0 | F56: =$A$56 -> 256389.1808 | G56: =$C$56 -> 202887.9571 | H56: =$A$56 -> 256389.1808 | I56: =$C$56 -> 202887.9571 | J56: =$A$56 -> 256389.1808 | K56: =$C$56 -> 202887.9571 | L56: =$A$56 -> 256389.1808 | M56: =$C$56 -> 202887.9571 | N56: =$A$56 -> 256389.1808 | O56: =$C$56 -> 202887.9571 | P56: =$A$56 -> 256389.1808 | Q56: =$C$56 -> 202887.9571 | R56: =$A$56 -> 256389.1808 | S56: =$C$56 -> 202887.9571
B57: Operat. costs ̶ fertilizers, substrate, etc. | D57: 0 | E57: 0 | F57: =H9 -> 67796.3304 | G57: =I9 -> 41906.4696 | H57: =$N$9 -> 149049.6432 | I57: =$O$9 -> 123159.7824 | J57: =$J$9 -> 171296.8772 | K57: =$K$9 -> 145407.0164 | L57: =$N$9 -> 149049.6432 | M57: =$O$9 -> 123159.7824 | N57: =$J$9 -> 171296.8772 | O57: =$K$9 -> 145407.0164 | P57: =$N$9 -> 149049.6432 | Q57: =$O$9 -> 123159.7824 | R57: =$J$9 -> 171296.8772 | S57: =$K$9 -> 145407.0164
A58: 2000 | B58: p.ann./ha. Other materials and services | F58: =$A$58/2*$C$9*$Q$4 -> 3311.866773 | G58: =$A$58/2*$C$9*$R$4 -> 2586.133227 | H58: =$A$58/2*$C$9*$Q$4 -> 3311.866773 | I58: =$A$58/2*$C$9*$R$4 -> 2586.133227 | J58: =$A$58/2*$C$9*$Q$4 -> 3311.866773 | K58: =$A$58/2*$C$9*$R$4 -> 2586.133227 | L58: =$A$58/2*$C$9*$Q$4 -> 3311.866773 | M58: =$A$58/2*$C$9*$R$4 -> 2586.133227 | N58: =$A$58/2*$C$9*$Q$4 -> 3311.866773 | O58: =$A$58/2*$C$9*$R$4 -> 2586.133227 | P58: =$A$58/2*$C$9*$Q$4 -> 3311.866773 | Q58: =$A$58/2*$C$9*$R$4 -> 2586.133227 | R58: =$A$58*$Q$4 -> 1123.047397 | S58: =$A$58*$R$4 -> 876.9526033
A59: =IF(C9>=2.5,3600,IF(AND(C9>=1,C9<3),3000,IF(AND(C9>0.5,C9<=1),1000,0))) -> 3600 | B59: Fixed costs | C59: =SUM(D59:S59) -> 3080841.9 | D59: =SUM(D60:D65) -> 15700 | E59: 131597.103 | F59: 192985.027 | G59: =SUM(G60:G65) -> 200097.103 | H59: =SUM(H60:H65) -> 197921.527 | I59: 204673.603 | J59: 202621.5925 | K59: 209373.6685 | L59: 207448.5598 | M59: 214200.6358 | N59: 212405.8552 | O59: 219157.9312 | P59: 217496.9975 | Q59: 224249.0735 | R59: =SUM(R60:R64) -> 212080.5737 | S59: =SUM(S60:S64) -> 218832.6497
A60: 1200 | B60: Office - phones, internet, rent, power | D60: 100 | E60: 200 | F60: 240 | G60: =$A$60/2 -> 600 | H60: 600 | I60: 600 | J60: 600 | K60: 600 | L60: 600 | M60: 600 | N60: 600 | O60: 600 | P60: 600 | Q60: 600 | R60: 600 | S60: 600
A61: 0 | B61: Cars - fuel and maintenance | D61: 0 | E61: 0 | F61: 0 | G61: =$A$61/2 -> 0 | H61: =$A$61/2 -> 0 | I61: 0 | J61: 0 | K61: 0 | L61: 0 | M61: 0 | N61: 0 | O61: 0 | P61: 0 | Q61: 0 | R61: 0 | S61: 0
A62: 25200 | B62: Fin. reporting, Online Cash-Flow Control System | D62: 0 | E62: 1000 | F62: =$A$62/2 -> 12600 | G62: 12600 | H62: 12600 | I62: 12600 | J62: 12600 | K62: 12600 | L62: 12600 | M62: 12600 | N62: 12600 | O62: 12600 | P62: 12600 | Q62: 12600 | R62: 12600 | S62: 12600
A63: 0.027 | B63: Payroll, administration, p. ann. | C63: =Staff!G12+Staff!G26+Staff!G31 -> 339000 | D63: =(Staff!G19+Staff!G20+Staff!G21+Staff!G22)/3 -> 15600 | E63: =C63/3 -> 113000 | F63: =$C$63/2 -> 169500 | G63: =$C$63/2 -> 169500 | H63: =F63*(1+$A$63) -> 174076.5 | I63: 174076.5 | J63: 178776.5655 | K63: 178776.5655 | L63: 183603.5328 | M63: 183603.5328 | N63: 188560.8282 | O63: 188560.8282 | P63: 193651.9705 | Q63: 193651.9705 | R63: 198880.5737 | S63: 198880.5737
A64: ='Cap.Goods'!D46 -> 6752.076 | B64: Insurance of building, products, cars | D64: ='Cap.Goods'!D44 -> 0 | E64: =A64-$D$64 -> 6752.076 | F64: ='Cap.Goods'!$D$44 -> 0 | G64: =$A$64-$F$64 -> 6752.076 | H64: ='Cap.Goods'!$D$44 -> 0 | I64: =$A$64-$F$64 -> 6752.076 | J64: ='Cap.Goods'!$D$44 -> 0 | K64: =$A$64-$F$64 -> 6752.076 | L64: ='Cap.Goods'!$D$44 -> 0 | M64: =$A$64-$F$64 -> 6752.076 | N64: ='Cap.Goods'!$D$44 -> 0 | O64: =$A$64-$F$64 -> 6752.076 | P64: ='Cap.Goods'!$D$44 -> 0 | Q64: =$A$64-$F$64 -> 6752.076 | R64: ='Cap.Goods'!$D$44 -> 0 | S64: =$A$64-$F$64 -> 6752.076
A65: =0.13%*M78 -> 0.00273 | B65: of sales - marketing, exhibitions | C65: =Intro!U41 -> 3899277.294 | E65: =$A$65*$C$65 -> 10645.02701 | F65: =IF(AND($M$76>$A$67,F54>E54),$A$65*$C$65,E65) -> 10645.02701 | G65: 10645.02701 | H65: 10645.02701 | I65: 10645.02701 | J65: 10645.02701 | K65: 10645.02701 | L65: =IF(AND($M$76>$A$67,L54>K54)*$C$65,K65) -> 10645.02701 | M65: =IF(AND($M$76>$A$67,M54>L54),$A$65*$C$65,L65) -> 10645.02701 | N65: =IF(AND($M$76>$A$67,N54>M54),$A$65*$C$65,M65) -> 10645.02701 | O65: =IF(AND($M$76>$A$67,O54>N54),$A$65*$C$65,N65) -> 10645.02701 | P65: =IF(AND($M$76>$A$67,P54>O54),$A$65*$C$65,O65) -> 10645.02701 | Q65: =IF(AND($M$76>$A$67,Q54>P54),$A$65*$C$65,P65) -> 10645.02701 | R65: =$A$65*$C$65 -> 10645.02701 | S65: =$A$65*$C$65 -> 10645.02701
A67: 2018-03-22 | B67: Turnkey - start date of operation Restarted for corrections
A68: 3039-02-02T16:00:00 | E68: Years: | F68: 1 | G68: =F68+1 -> 2 | H68: 3 | I68: 4 | J68: 5 | K68: 6 | L68: 7 | T68: up
A69: Level ❸ | B69: PROFITABILITY ANALYSIS | D69: Up front investment: | E69: =-C18 -> -8352843.943 | F69: =F39+G39 -> 2042954.173 | G69: =H39+I39 -> 1229582.07 | H69: =J39+K39 -> 1394070.401 | I69: =L39+M39 -> 1618799.916 | J69: =N39+O39 -> 1743352.962 | K69: =P39+Q39 -> 1870842.782 | L69: =R39+S39 -> 1479025.466
B70: 1-Yr period Operating Cash Flows | E70: Debt-Service Coverage Ratio = EBIT/Costs | F70: =SUM(G70:M70)/T70 -> 2.030018657 | G70: =(G29+G26)/G88 -> 1.645105083 | H70: =(I29+I26)/I88 -> 1.587117822 | I70: =(J29+J26)/J88 -> 2.692334802 | J70: =(K29+K26)/K88 -> 1.775983106 | K70: =(M29+M26)/M88 -> 2.025180153 | L70: =(O29+O26)/O88 -> 2.174365701 | M70: =(Q29+Q26)/Q88 -> 2.310043931 | T70: =MATCH(50,G70:S70) -> 1900-01-07
A71: Discounted Cash Flow Models | C71: The Investor can make enough in operating | F71: =IF(F70>=1.2,"Good","Bad") -> Good | G71: Default Risk Management | K71: Operational Risk Management
A72: Section MEASURING PROFITABILITY | C72: profits to pay its current debt service costs. It is subject of fiscal year-end monitoring. | F72: DSCR | G72: Section | M72: Section "SENSITIVITY ANALYSIS"
F73: Level④ | G73: PAYBACK PERIOD | K73: Simulation of Good Market | M73: Enter A1 share | N73: Simulation of Bad Market
A74: Discount (hurdle) rate : | C74: 0.065 | D74: Loan Life Coverage Ratio | G74: Period: | H74: =D132 -> 6 | I74: =E132 -> 3.76094484 | K74: =IF(Bayes!C7>Bayes!C9,"A1","A2") -> A1 | L74: Salesman | M74: 67 | N74: =IF(Bayes!C7<Bayes!C9,"A1 ","A2") -> A2 | O74: Salesman
A75: Net Present Value (NPV for CADS) : | C75: =NPV(C74,E69:L69) -> 533577.6424 | D75: Unlike period-on-period measures such as the above DSCR, it provides the Lender with a measure of the number of times the cash flow over the scheduled loan life can repay the outstanding debt balance. | G75: Date: | H75: 2022-06-30 | I75: earliness | L75: 79 | M75: =M74/100 -> 0.67 | N75: =100-L75 -> 21
A76: IRR : | C76: =IRR(E69:L69) -> 0.08413686025 | D76: 0.065 | E76: LLCR = | F76: =C75/A87 -> 0.0781328687 | H76: Accelerated amortization of loans | K76: Good sales | M76: 2018-06-17 | N76: Bad sales Select→ | P76: distribution of sales.
A77: 1 | B77: Commercial bank, Own funds (Loan "D") | C77: =SUM(D77+E77) -> 0 | D77: ='Cap.Goods'!M37 -> 0 | E77: ='Cap.Goods'!N37 -> 0 | F77: 0 | H77: Update £ it now. | M77: . Correction factor for Area of critical announcement
M78: =IF(AND(L75>90,N75>60)," STOP! Calm down. You've just entered a field of dreams!",Bayes!P21) -> 2.1
B79: Loan "C" Local market vegetables | E79: 0 | F79: =Q10 -> 90000 | G79: =$R$10 -> 150000 | H79: =$Q$10 -> 90000 | I79: =$R$10 -> 150000 | J79: =$Q$10 -> 90000 | K79: =$R$10 -> 150000 | L79: =$Q$10 -> 90000 | M79: =$R$10 -> 150000 | N79: =$Q$10 -> 90000 | O79: =$R$10 -> 150000 | P79: =$Q$10 -> 90000 | Q79: =$R$10 -> 150000 | R79: =$Q$10 -> 90000 | S79: =$R$10 -> 150000
B80: =O16 -> 0 | C80: =C13 -> Date: | D80: 2019-06-30 | E80: 2019-12-31 | F80: 2020-06-30 | G80: 2020-12-31 | H80: 2021-06-30 | I80: 2021-12-31 | J80: 2022-06-30 | K80: 2022-12-31 | L80: 2023-06-30 | M80: 2023-12-31 | N80: 2024-06-30 | O80: 2024-12-31 | P80: 2025-06-30 | Q80: 2025-12-31 | R80: 2026-06-30 | S80: 2026-12-31
B81: LOANS Number of Periods | C81: =C12 -> Nr of Monts | F81: =E12 -> 12 | G81: 18 | H81: 24 | I81: 30 | J81: 36 | K81: 42 | L81: 48 | M81: 54 | N81: 60 | O81: 66 | P81: 72 | Q81: 78 | R81: =P12 -> 78 | S81: =Q12 -> 84
B82: Nr. of periods | C82: =MATCH(50,E82:S82) -> 15 | E82: 1 | F82: =E82+1 -> 2 | G82: =F82+1 -> 3 | H82: =G82+1 -> 4 | I82: 5 | J82: 6 | K82: 7 | L82: 8 | M82: 9 | N82: 10 | O82: 11 | P82: 12 | Q82: 13 | R82: 14 | S82: =R82+1 -> 15
B83: Nr. of principal period repayments | C83: =MATCH(50,F83:S83) -> 14 | F83: =D11 -> 1 | G83: 2 | H83: 3 | I83: 4 | J83: 5 | K83: 6 | L83: 7 | M83: 8 | N83: 9 | O83: 10 | P83: 11 | Q83: 12 | R83: 13 | S83: 14
A85: TOTAL: | B85: Loan "A", Balance liabilities | C85: =C16 -> 7430876 | D85: =C85 -> 7430876 | E85: =D85 -> 7430876 | F85: =E85 -> 7430876 | G85: =F85-F87 -> 7430876 | H85: =G85-G87 -> 6965689 | I85: =H85-H87 -> 6491198 | J85: 6007217 | K85: 5513556 | L85: =K85-K87 -> 5010022 | M85: =L85-L87 -> 4496417 | N85: =M85-M87 -> 3972540 | O85: =N85-N87 -> 3438186 | P85: 2893145 | Q85: =P85-P87 -> 2337203 | R85: =Q85-Q87 -> 1770142 | S85: =R85-R87 -> 1191740
A86: =SUM(G86:S86) -> 885325 | B86: Interest payments | C86: ='Cap.Goods'!G39 -> 0.04 | G86: =-ROUND(IPMT($C$86/2,F83,$C$83,F85),0) -> 148618 | H86: 139314 | I86: 121697 | J86: 104951 | K86: 89145 | L86: 74347 | M86: 60631 | N86: 48076 | O86: 36761 | P86: 26773 | Q86: 18199 | R86: 11135 | S86: 5678 | T86: =SUM(G86:R86) -> 4308-05-22
A87: =SUM(G87:S87) -> 6829106 | B87: Principal installments | G87: =-ROUND(PPMT($C$86/2,F83,$C$83,$C$85),0) -> 465187 | H87: 474491 | I87: 483981 | J87: 493661 | K87: 503534 | L87: 513605 | M87: 523877 | N87: 534354 | O87: 545041 | P87: 555942 | Q87: 567061 | R87: 578402 | S87: 589970 | T87: =SUM(G87:R87) -> 6239136
A88: =SUM(A86:A87) -> 7714431 | B88: Installments, TOTAL: | C88: =SUM(D88:Q88) -> 6529246 | D88: =SUM(D86:D87) -> 0 | E88: 0 | F88: 0 | G88: 613805 | H88: 613805 | I88: 605678 | J88: 598612 | K88: =SUM(K86:K87) -> 592679 | L88: =SUM(L86:L87) -> 587952 | M88: 584508 | N88: 582430 | O88: =SUM(O86:O87) -> 581802 | P88: =SUM(P86:P87) -> 582715 | Q88: =SUM(Q86:Q87) -> 585260 | R88: =SUM(R86:R87) -> 589537 | S88: =SUM(S86:S87) -> 595648
A90: TOTAL: | B90: Loan "B", Balance liabilities | C90: =C17 -> 921967.9434 | D90: =D17 -> 329708.2 | E90: =D90+E17 -> 921967.9434 | F90: =E90+F17 -> 921967.9434 | G90: =F90-F92 -> 921967.9434 | H90: =G90-G92 -> 864250.9434 | I90: =H90-H92 -> 805379.9434 | J90: =I90-I92 -> 745330.9434 | K90: =J90-J92 -> 684080.9434 | L90: 621605.9434 | M90: 557881.9434 | N90: 492882.9434 | O90: 426583.9434 | P90: 358958.9434 | Q90: 289981.9434 | R90: =Q90-Q92 -> 219624.9434 | S90: =R90-R92 -> 147860.9434
A91: =SUM(D91:S91) -> 117215 | B91: Interest payments | C91: ='Cap.Goods'!H39 -> 0.04 | E91: =-ROUND(IPMT($C$91/2,E82,$C$82,D90),0) -> 6594 | F91: =-ROUND(IPMT($C$91/2,F82,$C$82,E90),0) -> 17373 | G91: =-ROUND(IPMT($C$91/2,G82,$C$82,F90),0) -> 16286 | H91: =-ROUND(IPMT($C$91/2,H82,$C$82,G90),0) -> 15176 | I91: =-ROUND(IPMT($C$91/2,I82,$C$82,H90),0) -> 13165 | J91: =-ROUND(IPMT($C$91/2,J82,$C$82,I90),0) -> 11260 | K91: 9469 | L91: 7800 | M91: 6262 | N91: 4864 | O91: 3616 | P91: =-ROUND(IPMT($C$91/2,P82,$C$82,O90),0) -> 2528 | Q91: =-ROUND(IPMT($C$91/2,Q82,$C$82,P90),0) -> 1611 | R91: =-ROUND(IPMT($C$91/2,R82,$C$82,Q90),0) -> 876 | S91: =-ROUND(IPMT($C$91/2,S82,$C$82,R90),0) -> 335 | T91: =SUM(G91:R91) -> 2154-05-20
A92: =SUM(D92:Q92) -> 702343 | B92: Principal installments | C92: =ROUND(SUM(D92:S92),-1) -> 847310 | G92: =-ROUND(PPMT($C$91/2,F83,$C$83,$C$90),0) -> 57717 | H92: 58871 | I92: 60049 | J92: 61250 | K92: 62475 | L92: 63724 | M92: 64999 | N92: 66299 | O92: 67625 | P92: 68977 | Q92: 70357 | R92: 71764 | S92: 73199
A93: =SUM(D93:S93) -> 964521 | B93: Installments, TOTAL: | C93: =SUM(D93:Q93) -> 818347 | D93: =SUM(D91:D92) -> 0 | E93: =SUM(E91:E92) -> 6594 | F93: =SUM(F91:F92) -> 17373 | G93: =SUM(G91:G92) -> 74003 | H93: =SUM(H91:H92) -> 74047 | I93: =SUM(I91:I92) -> 73214 | J93: =SUM(J91:J92) -> 72510 | K93: =SUM(K91:K92) -> 71944 | L93: 71524 | M93: 71261 | N93: 71163 | O93: 71241 | P93: =SUM(P91:P92) -> 71505 | Q93: =SUM(Q91:Q92) -> 71968 | R93: =SUM(R91:R92) -> 72640 | S93: =SUM(S91:S92) -> 73534
A94: Diversification following from Risk Assessment
A95: OPERATIONAL TEST } Balance liabilities | C95: =C77 -> 0 | D95: =D77 -> 0 | E95: =D95+E77 -> 0 | F95: =E95+F77 -> 0 | G95: =F95-F97 -> 0 | H95: =G95-G97 -> 0 | I95: =H95-H97 -> 0 | J95: 0 | K95: 0 | L95: 0 | M95: 0 | N95: 0 | O95: 0 | P95: 0 | Q95: 0 | R95: =Q95-Q97 -> 0 | S95: =R95-R97 -> 0
A96: =ROUND(SUM(D96:Q96),-1) -> 0 | B96: Interest payments | C96: ='Cap.Goods'!M39 -> 0.055 | E96: =-ROUND(IPMT($C$96/2,E82,$C$82,D95),0) -> 0 | F96: =-ROUND(IPMT($C$96/2,F82,$C$82,E95),0) -> 0 | G96: =-ROUND(IPMT($C$96/2,G82,$C$82,F95),0) -> 0 | H96: =-ROUND(IPMT($C$96/2,G83,$C$83,G95),0) -> 0 | I96: 0 | J96: 0 | K96: 0 | L96: 0 | M96: 0 | N96: 0 | O96: 0 | P96: 0 | Q96: 0 | R96: 0 | S96: 0 | T96: =SUM(G96:R96) -> 00:00:00
B97: Principal deferred payments | C97: =C77 -> 0 | G97: =-ROUND(PPMT($C$96/2,F83,$C$83,$C$95),0) -> 0 | H97: =-ROUND(PPMT($C$96/2,H82,$C$82,$C$95),0) -> 0 | I97: =-ROUND(PPMT($C$96/2,I82,$C$82,$C$95),0) -> 0 | J97: 0 | K97: 0 | L97: 0 | M97: 0 | N97: 0 | O97: 0 | P97: 0 | Q97: =-ROUND(PPMT($C$96/2,Q82,$C$82,$C$95),0) -> 0 | R97: =-ROUND(PPMT($C$96/2,R82,$C$82,$C$95),0) -> 0 | S97: =-ROUND(PPMT($C$96/2,S82,$C$82,$C$95),0) -> 0
B98: Installments, TOTAL: | E98: =SUM(E96:E97) -> 0 | F98: =SUM(F96:F97) -> 0 | G98: =SUM(G96:G97) -> 0 | H98: =SUM(H96:H97) -> 0 | I98: =SUM(I96:I97) -> 0 | J98: 0 | K98: 0 | L98: 0 | M98: 0 | N98: 0 | O98: 0 | P98: 0 | Q98: 0 | R98: =SUM(R96:R97) -> 0 | S98: =SUM(S96:S97) -> 0
A100: =A86+A91+A96 -> 1002540 | B100: GRAPHS | D100: 1 | E100: =D100+1 -> 2 | F100: =E100+1 -> 3 | G100: 4 | H100: 5 | I100: 6 | J100: 7 | K100: 8 | L100: 9 | M100: 10 | N100: 11 | O100: 12 | P100: =O100+1 -> 13 | Q100: =P100+1 -> 14 | R100: =Q100+1 -> 15 | S100: =R100+1 -> 16
B101: Total balance liabilities, Loan "A" | D101: =D85 -> 7430876 | E101: 7430876 | F101: =F85 -> 7430876 | G101: 7430876 | H101: 6965689 | I101: =I85 -> 6491198 | J101: 6007217 | K101: 5513556 | L101: 5010022 | M101: 4496417 | N101: 3972540 | O101: 3438186 | P101: 2893145 | Q101: 2337203 | R101: =R85 -> 1770142 | S101: =S85 -> 1191740
B102: OPERATING PERIOD } Total balance liabilities "A" | C102: IN OPERATION | D102: =D85 -> 7430876 | E102: =E85 -> 7430876 | F102: =F85 -> 7430876 | G102: =G85 -> 7430876 | H102: =H85 -> 6965689 | I102: =I85 -> 6491198 | J102: 6007217 | K102: 5513556 | L102: 5010022 | M102: 4496417 | N102: 3972540 | O102: 3438186 | P102: 2893145 | Q102: 2337203 | R102: =R85 -> 1770142 | S102: =S85 -> 1191740
A103: =IF(SUM(G86:Q86)=C85,"True","False") -> False | B103: Cash | D103: =D39 -> -1612823.4 | E103: -6904556.673 | F103: 1710700.928 | G103: 332253.2454 | H103: 876702.9582 | I103: 352879.1118 | J103: 1024566.303 | K103: 369504.0986 | L103: 1140240.813 | M103: 478559.1029 | N103: 1232266.254 | O103: 511086.7084 | P103: 1304071.405 | Q103: 566771.3775 | R103: 871575.2701 | S103: 607450.1963
B104: Cash Cumulative | D104: =D40 -> -1612823.4 | E104: -8517380.073 | F104: -6806679.145 | G104: -6474425.9 | H104: -5597722.942 | I104: -5244843.83 | J104: -4220277.527 | K104: -3850773.429 | L104: -2710532.616 | M104: -2231973.513 | N104: -999707.2591 | O104: -488620.5508 | P104: 815450.8538 | Q104: 1382222.231 | R104: 2253797.501 | S104: 2861247.698
B105: Operating cash cumulative | D105: =D35 -> -15700 | E105: =D35+E35 -> -164536.13 | F105: =E35+F35 -> 1561864.798 | G105: =F35+G35 -> 2565858.173 | H105: =H125 -> 3811387.002 | I105: 4708296.113 | J105: 6287773.416 | K105: 7223286.515 | L105: 8940856.328 | M105: 10008291.43 | N105: 11841210.68 | O105: 12964963.39 | P105: 14893953.8 | Q105: 16098143.17 | R105: 17302332.55 | S105: 18506521.93
T106: up
C122: Debt Rate | D122: =D102/$C$18 -> 0.8896222712 | E122: 0.8896222712 | F122: 0.8896222712 | G122: 0.8896222712 | H122: 0.8339302215 | I122: 0.7771242997 | J122: 0.7191822379 | K122: 0.6600812894 | L122: 0.5997983482 | M122: 0.5383097099 | N122: 0.4755913108 | O122: 0.4116186084 | P122: 0.3463664615 | Q122: 0.2798092501
C123: Start date
B124: Auxiliary rows: Crossing point of cash and debt | C124: =D80 -> 2019-06-30 | D124: 1 | E124: =D124+1 -> 2 | F124: =E124+1 -> 3 | G124: 4 | H124: 5 | I124: 6 | J124: 7 | K124: 8 | L124: 9 | M124: 10 | N124: =M124+1 -> 11 | O124: 12 | P124: 13 | Q124: 14 | R124: =Q124+1 -> 15 | S124: =R124+1 -> 16
B125: Payback > cumulate OCFs | C125: =MATCH(A128,D105:Q105) -> 2 | D125: =$D$35 -> -15700 | E125: =D125+$E$35 -> -164536.13 | F125: =E125+$F$35 -> 1546164.798 | G125: =F125+$G$35 -> 2401322.043 | H125: =G125+$H$35 -> 3811387.002 | I125: =H125+$I$35 -> 4708296.113 | J125: =I125+$J$35 -> 6287773.416 | K125: =J125+$K$35 -> 7223286.515 | L125: =K125+$L$35 -> 8940856.328 | M125: =L125+$M$35 -> 10008291.43 | N125: =M125+$N$35 -> 11841210.68 | O125: =N125+$O$35 -> 12964963.39 | P125: =O125+$P$35 -> 14893953.8 | Q125: =P125+$Q$35 -> 16098143.17 | R125: =Q125+$Q$35 -> 17302332.55 | S125: =R125+$Q$35 -> 18506521.93
B126: repayment estimatior row | C126: =DATE(YEAR(C124)+C125,MONTH(C124)+2,DAY(C124+7)) -> 2021-08-07 | D126: =CHOOSE(C125,E80,F80,G80,H80,I80,J80,K80,L80,M80,N80,O80,P80,Q80) -> 2020-06-30 | E126: =C125*6 -> 12 | F126: =E126/12 -> 1 | G126: =ROUNDUP(F126,0) -> 1 | H126: =G126-F126 -> 0 | I126: =H126*12 -> 0
B127: auxiliary row | C127: Payback date | E127: =(D126-E80)/12 -> 15.16666667 | F127: =ROUNDDOWN(E127,0) -> 15 | G127: =E127-F127 -> 0.1666666667 | H127: =G127*12 -> 2 | I127: =IF(H127=12,F127+1,F127) -> 15 | J127: =IF(H127=12,0,H127) -> 2
A128: =C86 -> 0.04 | B128: Base forecast
A129: =D132*365+1+E132*30+4 -> 2307.828345 | B129: Yr: | D129: 1 | E129: 2 | F129: 3 | G129: 4 | H129: 5 | I129: 6 | J129: 7 | K129: 8
A130: =A129/(365+1) -> 6.305541927 | B130: AnnNCinF | D130: =D39+E39 -> -8517380.073 | E130: =F39+G39 -> 2042954.173 | F130: =H39+I39 -> 1229582.07 | G130: =J39+K39 -> 1394070.401 | H130: =L39+M39 -> 1618799.916 | I130: =N39+O39 -> 1743352.962 | J130: =P39+Q39 -> 1870842.782
A131: =D21 -> 2019-06-30 | B131: Comulative | D131: =D130 -> -8517380.073 | E131: =D131+E130 -> -6474425.9 | F131: =E131+F130 -> -5244843.83 | G131: -3850773.429 | H131: -2231973.513 | I131: -488620.5508 | J131: 1382222.231
A132: =A131+A129 -> 2025-10-23T19:52:49.024 | B132: Period | D132: =COUNTIF(D131:J131,"<"&A128) -> 6 | E132: =F132*12/10 -> 3.76094484 | F132: =(A128-HLOOKUP(COUNTIF(D131:J131,"<"&A128),D129:J131, 3,0))/(HLOOKUP(COUNTIF(D131:J131,"<"&A128)+1,D129:J131,2,0))*12 -> 3.1341207
E133: Ê | F133: Indicates the fraction of the year
D136: 0.229 | E136: 0.1787 | F136: 0.1422 | G136: 0.0655 | H136: 0.0199 | I136: 0.0019 | J136: 0 | K136: 0 | L136: 0.012 | M136: 0.0644 | N136: 0.08 | O136: 0.2064 | P136: =SUM(D136:O136) -> 1

Sheet Bayes
A1: CHAPTER 1 | B1: DECISION ANALYSIS | L1: Name of Project
A2: Level④ | B2: POSTERIOR PROBABILITIES OF TWO EVENTS | L2: =Intro!H5 -> TomCuc Greenhouse
A4: Background: | B4: You are producer and supplier of high quality vegetables to two salesmen on large nets of European wholesale markets. Let A1 and A2 denoted two events of interest—different quantiies for sales.
A5: Historical Info: | B5: Enter new data below. If except these two events of interest there are more probabilities indicated by the Online Cash-Flow Control System, go to the next Sheet "Bayes5" .
A7: Event A1: part of QUANTITY for Salesman A1 → | C7: =BUDGET!M75 -> 0.67 | D7: Percentage of prior probability for sale on the market. | J7: The mutually exclusive events for which posterior probabilities are desired.
J8: My events of interest:
A9: Event A2: part of QUANTITY for Salesman A2 → | C9: =100%-C7 -> 0.33 | D9: Percentage supplied to A2 I | F9: → low quality of commercial service - term → of deferred payment and lower income. | J9: Which of both market distributors sells our products on the better prices and pays us faster?
F10: In analyzing of conditional prior probability for specific events of interest here are indicated probabilities giving new information for their revision
A11: Event A1: QUALITY Good services for Salesman A1 → | C11: =BUDGET!L75/100 -> 0.79 | D11: Percentage Good sаlеs and payments (G) | F11: Based on pre-design marketing the values of prior conditional probabilities of professional ratings of the two salesmen and their markets are shown in the Table. This prior probability will be revised in light of new operational information Income streams when appear problems, what is the probability and what part is due to each Sales-man? The Joint Bad Probabilities are found by multiplying the prior probabilities by the Conditional Probabilities = equal to Overall probability of finding the Bad part of commercial outsourcing, and for further improvement.
A13: Event A2: QUALITY Bad services for Salesman A2 → | C13: =BUDGET!N75/100 -> 0.21 | D13: Percentage Bad sаlеs and payment (B)
A15: Safe Event | C15: SALES REVENUE EVENTS | E15: PRIOR PROBABILITY | G15: POSTERIOR | K15: TABULAR APPROACH
A16: Restore Model | B16: When Yu pay - cry | C16: Percentage of total Sаlеs | D16: Percentage Bad QUALITY Sаlеs | E16: QUANTITY % from A1∩A2 Sаlеs | G16: PROBABILITIES that Bad part of sales is: | K16: A1U A2 Prior Probabilities | L16: B Conditional Probabilities | M16: Joint Bad A1, 2 ∩ B | N16: Posterior Probabilities | P16: Others cry
A18: Clean Model | B18: Salesman A1 | C18: =C7 -> 0.67 | D18: =1-C11 -> 0.21 | E18: =C7 -> 0.67 | G18: From Salesman A1: | I18: =D18*E18/(D18*E18+D20*E20) -> 0.67 | K18: =C18 -> 0.67 | L18: =D18 -> 0.21 | M18: =K18*L18 -> 0.1407 | N18: =M18/M21 -> 0.67
B20: Salesman A2 | C20: =C9 -> 0.33 | D20: =C13 -> 0.21 | E20: =1-E18 -> 0.33 | G20: From Salesman A2: | I20: =D20*E20/(D18*E18+D20*E20) -> 0.33 | K20: =C20 -> 0.33 | L20: =D20 -> 0.21 | M20: =K20*L20 -> 0.0693 | N20: =M20/M21 -> 0.33
A21: ANALYSIS: | B21: On relative basis: the probability of the Bad event, coming from Salesman А2 [ | F21: =N20 -> 0.33 | G21: ] compared [ | H21: =N18 -> 0.67 | I21: ] from Good A1. | K21: =K18+K20 -> 1 | L21: To the new info given each event | M21: =SUM(M18:M20) -> 0.21 | N21: =N18+N20 -> 1 | P21: =M21*10+O21*1 -> 2.1
B22: There is a greater likelihood Bad event to be observed because outcome as [ | F22: =M20 -> 0.0693 | G22: ] following [ | H22: =N20 -> 0.33 | I22: ] A2 Bad event could be a crash. | M22: Overall <probability of Bad event=
A24: CLOSING:
A26: Constructed using "Quantitative Methods for Business" (Fifth edition); David R. Anderson, University of Cincinnati, Dennis J. Sweeney, University of Cincinnati, Thomas A. Williams, Rochester Institute of Technology; Library of Congress Cataloging-in-Publication Data.
A28: COMMENTS: | B28: It is well known and certainly recommendable that to start an investment project, the investor (and his team making inside risk assessment) must be convinced, must believe in the good outcome, and he must act decisively, without any hesitation. Very often, this is reflected in a low assessment of the Default Risk Ratio (d--Factor) that is raising its real impact. In such cases we approach the above probability estimation, often called “what-if” analysis. It follows the High Qualified Audit, in this Risk Assessment program recognized as "Group D".
B31: Excerpts from the comments of our clients of this model: ". . . default risk assessment is the starting point which most frequently cause disputes with the lenders, very often ending with denial of funding, no matter what the finally stated reason was." Look at the picture below, which is the most popular example of visible illusion.
C34: We are looking out to the market and don’t see a big risk to become unable to pay back our debt. | K34: Who is right, when the lengths of the lines are equal? . . . "
C36: The lenders are only looking within themselves, see plenty of big risks, and talk only about it.
B38: In making a decision for new investments never believe and rely solely on: ① your intuition, based on long-term experience; ② suggestions of high level experts; and ③ good chance.
B39: Rely only on risk assessment and computing of prior and posterior probability of specific events of interest. Once you have them, return to the above approaches for the final decision.
B40: The assessment of Default Risk (d ) to an acceptable level is a key factor for the positive resolution of a loan application. The system, called OCFCS for short, which we recommend is an instrument that serves post factum an investment throughout the project providing permanent online information to the lender, insurer and to the investor.
A44: RECORD: | B44: PROJECT NAME | D44: QUALITY | F44: QUANTITY | H44: The event . . .
B45: (or Investor Name) | D45: AGENT A1 | E45: AGENT A2 | F45: AGENT A1
B46: =L2 -> TomCuc Greenhouse | D46: 0.98 | E46: 0.95 | G46: 0.65 | H46: Agents distribute in their countries these percentages of KEM's products.
A48: Keep these h cells free for longer project name extension

Sheet Staff
D1: лв./$ exchange rate: | E1: 1 | F1: 1.52 | I1: =Intro!C83 -> 5.8368 | J1: Area
D2: USD/EUR exchange rate: | E2: 1 | F2: 1.05
D3: EUR/лв. exchange rate: | E3: 1 | F3: 1.96 | L3: Supporting Column
C5: OCFCS & Trading Consulting Company | F5: STAFF - Start Salaries
D6: PERSONNEL, Position | E6: % | F6: € p.Мо | G6: p.ann | H6: € p.Mo | J6: 0
E7: Remuneration | H7: ₊Bonus
D8: WORKING ТЕАМ | H8: (conditional)
C9: 1 | D9: Manager | E9: 0.5 | F9: 1000 | G9: =E9*F9*$J$16 -> 6000 | H9: 100 | I9: =E9*(F9+G9) -> 3500 | J9: =E9*I9*$J$6 -> 0
C10: =C9+1 -> 2 | D10: Expert risk management | E10: 0.5 | F10: 600 | G10: =E10*F10*$J$16 -> 3600 | H10: 75 | I10: 0 | J10: =I10*$J$6 -> 0
C11: =C10+1 -> 3 | D11: Expert financial control | E11: 0.5 | F11: 600 | G11: 3600 | H11: 50 | I11: 0 | J11: =I11*$J$6 -> 0
D12: TOTAL: | E12: =E8 -> 0 | G12: =SUM(G9:G11) -> 13200 | J12: =SUM(J9:J11) -> 0
C15: Project Company TomCuC, Ltd. | F15: STAFF - Start Salaries
D16: PERSONNEL, Position | E16: Nr | F16: € p.Мо | G16: p.ann | H16: € p.Mo | J16: 12
F17: Base salary | G17: Fixed | H17: ₊Bonus | I17: TOTAL
D18: ASMINISTRATION | E18: =SUM(E19:E22) -> 6 | F18: salary | G18: salary | H18: (conditional)
C19: 1 | D19: CEO - Manager | E19: 1 | F19: 1000 | G19: =E19*F19*$J$16 -> 12000 | H19: 300 | I19: =F19+H19 -> 1300 | J19: =E19*I19*$J$16 -> 15600
C20: =C19+1 -> 2 | D20: Senior level technicans | E20: 2 | F20: 800 | G20: =E20*F20*$J$16 -> 19200 | H20: 200 | I20: =F20+H20 -> 1000 | J20: =E20*I20*$J$16 -> 24000
C21: =C20+1 -> 3 | D21: Mid-level tehnicans | E21: 2 | F21: 400 | G21: =E21*F21*$J$16 -> 9600 | H21: 100 | I21: =F21+H21 -> 500 | J21: =E21*I21*$J$16 -> 12000
C22: =C21+1 -> 4 | D22: Accountant | E22: 1 | F22: 500 | G22: =E22*F22*$J$16 -> 6000 | H22: 50 | I22: =F22+H22 -> 550 | J22: =E22*I22*$J$16 -> 6600
D23: SERVICE STAFF | E23: =SUM(E24:E25) -> 5
C24: =C22+1 -> 5 | D24: Truckers | E24: 1 | F24: 500 | G24: =E24*F24*$J$16 -> 6000 | H24: 50 | I24: =F24+H24 -> 550 | J24: =E24*I24*$J$16 -> 6600
C25: =C24+1 -> 6 | D25: Security | E25: 4 | F25: 400 | G25: =E25*F25*$J$16 -> 19200 | H25: 0 | I25: =F25+H25 -> 400 | J25: =E25*I25*$J$16 -> 19200
D26: SubTOTAL: | E26: =E18+E23 -> 11 | G26: =SUM(G19:G25) -> 72000 | J26: =SUM(J19:J25) -> 84000
C28: 90 | D28: PRODUCTION STAFF | E28: =E29 -> 45
C29: 7 | D29: Payroll staff, p Mo | E29: =IF(AND($I$1>=10,C28>0),C28,IF(OR($I$1>=3,$I$1<=6),C28*1/2,IF(OR($I$1>=1,$I$1<3),30,0))) -> 45 | F29: 400 | G29: =E29*F29*$J$16 -> 216000 | H29: 100 | I29: =F29+H29 -> 500 | J29: =E29*I29*$J$16 -> 270000
D30: Social Security (averaged) | G30: =G29*I30 -> 37800 | I30: =I37 -> 0.175 | J30: =I30*J29 -> 47250
D31: SubTOTAL: | G31: =G29+G30 -> 253800 | J31: =SUM(J29:J30) -> 317250
D33: TomCuC HH, Ltd., TOTAL: | E33: =E26+E28 -> 56 | J33: =J26+J29 -> 354000
D37: Social Security (averaged) | I37: 0.175 | J37: =I37*(J12+J26) -> 14700
D38: TOTAL: | J38: =J12+J33+J37 -> 368700
C41: * | D41: Consequence of the need of Effective System of Internal Control during the repayment period.
D42: It must have to this position special Assignment of Responsibilities combining virtual treasurer and controller.
D43: He should have Limited Proper Authorization during the loan repayment period only.

Sheet Bayes5
A1: CHAPTER 1 | F1: DECEISION ANALYSES | P1: Name of Project
B2: POSTERIOR PROBABILITIES OF FIVE EVENTS | P2: ='Cap.Goods'!E3 -> Zoom 152 Capital Goods and Services
A4: Background: | B4: Five mutually exclusive events following delivery of goods or services by Suppliers where one of the events must occur when new information
A5: Clean and Start | B5: from a sample, a special report, a product test, and so on, about it is received. Henceforth, you have to revise or update the prior probability values.
A6: Historical Info: | B6: Good quality event  ENTER | H6: Complete here the here Bad parts or services received from each supplier .
C7: QUALITY | G7: QUANTITY | I7: POSTERIOR PROBABILITY | K7: CONDITIONAL | M7: FINAL | O7: NOTES
C8: % Good | E8: % Bad | G8: % from | I8: that Bad event is: | K8: Joint Bad A1,2 ∩B | M8: for Ai
A9: Event A1 from: | B9: Supplier A1 (Subcontractor) | E9: =1-C9 -> 1 | I9: =100*E9*G9/($E$9*$G$9+$E$11*$G$11+$E$13*$G$13+$E$15*$G$15+$E$17*$G$17) -> 0 | K9: =100*G9*E9 -> 0 | M9: =K9/$K$19 -> 0
A11: Event A2 from: | B11: Supplier A2 (Subcontractor) | E11: =1-C11 -> 1 | I11: =100*E11*G11/($E$9*$G$9+$E$11*$G$11+$E$13*$G$13+$E$15*$G$15+$E$17*$G$17) -> 0 | K11: =100*G11*E11 -> 0 | M11: =K11/$K$19 -> 0
A13: Event A3 from: | B13: Supplier A3 (Subcontractor) | E13: =1-C13 -> 1 | I13: =100*E13*G13/($E$9*$G$9+$E$11*$G$11+$E$13*$G$13+$E$15*$G$15+$E$17*$G$17) -> 0 | K13: =100*G13*E13 -> 0 | M13: =K13/$K$19 -> 0
A15: Event A4 from: | B15: Supplier A4 (Subcontractor) | E15: =1-C15 -> 1 | I15: =100*E15*G15/($E$9*$G$9+$E$11*$G$11+$E$13*$G$13+$E$15*$G$15+$E$17*$G$17) -> 0 | K15: =100*G15*E15 -> 0 | M15: =K15/$K$19 -> 0
A17: Event A5 from: | B17: Supplier A5 (Subcontractor) | E17: =1-C17 -> 1 | G17: =1-SUM(G9:G15) -> 1 | I17: =100*E17*G17/($E$9*$G$9+$E$11*$G$11+$E$13*$G$13+$E$15*$G$15+$E$17*$G$17) -> 100 | K17: =100*G17*E17 -> 100 | M17: =K17/$K$19 -> 1
A19: See Comments | K19: =SUM(K9:K18) -> 100 | M19: =SUM(M9:M18) -> 1
K20: Overall<probability of happen Bad event
